Cogmind - Beta 15 @@@ ROGUE MODE // 2025.07.29 @ 20:08:23 Player: FrigidRock Result: Destroyed by G-73 Enforcer with Phase Gun Performance ------------- Evolutions (9) 4500 Regions Visited (32) 6400 Robots Destroyed (317) 1585 Value Destroyed (21679) 21679 Prototype IDs (33) 660 Alien Tech Used (2) 400 Bonus (18107) 18107 TOTAL SCORE: 53331 Bonus ------- High Alert Combat Kills 495 Follower Combat Kills 10326 Entered Garrisons 2400 Used RIF Installer 4500 Scanned by Researcher 500 Friendly Fire -114 Cogmind --------- Core Integrity 0/1600 Matter 290/300 Energy 94/100 System Corruption 13% Temperature Cool (0) Movement Core (300) Ox5 Location -1/Access Parts ------- > --- POWER (2) -------- (None) > --- PROPULSION (6) --- (None) > --- UTILITY (14) ----- (None) > --- WEAPON (3) ------- Heavy Disruptor Cannon > --- INVENTORY (5) ---- Improved Remote Force Field Relay Coupler [NC] (37) Relay Coupler [Swarmer] (35) Peak State ------------ > --- POWER ------------ Micro Antimatter Reactor Light Quantum Reactor > --- PROPULSION ------- Myomer Leg Biometal Leg Biometal Leg Centrium Leg Heavy Shield Leg > --- UTILITY ---------- Advanced Cryofiber Web Advanced Heat Sink Huge Storage Unit Advanced Targeting Computer Advanced Transmission Jammer Improved Core Shielding Improved Core Shielding Advanced Force Field Improved Hacking Suite Improved System Shield Relay Coupler [Grunt] Relay Coupler [Duelist] Relay Coupler [Sentry] Relay Coupler [Specialist] > --- WEAPON ----------- Enhanced Nova Cannon Enhanced Hardcell Cannon Enhanced Hardcell Cannon > --- INVENTORY -------- Myomer Leg Enhanced Biometal Leg Enhanced Biometal Leg Advanced Matter Compressor Phase Redirector Advanced Point Defense System Relay Coupler [NC] Relay Coupler [Swarmer] Relay Coupler [Sentry] Relay Coupler [Sentry] Relay Coupler [Sentry] Relay Coupler [Specialist] Relay Coupler [Specialist] Relay Coupler [Specialist] Relay Coupler [Proto] Relay Coupler [Proto] Relay Coupler [Proto] Relay Coupler [Proto] Subatomic Replicator Heavy Disruptor Cannon Linear Accelerator Advanced Datajack Advanced Remote Datajack [Rating: 177] Favorites ----------- Power Light Quantum Reactor Engine Reinforced Deuterium Engine Power Core Neutrino Core Reactor Light Quantum Reactor Propulsion Myomer Leg Treads Light Treads Leg Myomer Leg Wheel Wheel Utility Relay Coupler [Duelist] Device Advanced Heat Sink Storage Huge Storage Unit Processor Advanced Targeting Computer Hackware Relay Coupler [Duelist] Protection Improved Medium Armor Plating Artifact Phase Redirector Weapon Improved Remote Datajack Energy Gun Improved EM Shotgun Energy Cannon Cooled Plasma Cannon Ballistic Gun Railgun Ballistic Cannon Enhanced Hardcell Cannon Launcher Improved Proton Missile Launcher Special Weapon Improved Remote Datajack Special Melee Weapon Advanced Datajack Build | -11 -10 -10 -9 -9 -9 -9 -7 -7 -7 -7 -6 -6 -5 -5 -5 -5 -4 -4 -4 -4 -4 -4 -3 -3 -2 -2 -2 -2 -2 -2 -2 -1 ------- Run | Yrd Mat Min Mat Sto Gar Rec Fac Gar Fac Gar Fac Gar Fac Gar Fac Gar Fac Was Fac Gar Fac Gar Res Gar Res Gar Res Gar Qua Gar Sec Acc Slots Evolved 18 | . . . 2 . . . 4 . . . 2 . 2 . . . 2 . . . . . 2 . 2 . . . . . . 2 Power 1 | . . . . . . . . . . . 1 . . . . . . . . . . . . . . . . . . . . . Propulsion 4 | . . . 1 . . . 1 . . . . . 1 . . . . . . . . . 1 . . . . . . . . . Utility 12 | . . . 1 . . . 3 . . . 1 . 1 . . . 2 . . . . . 1 . 1 . . . . . . 2 Weapon 1 | . . . . . . . . . . . . . . . . . . . . . . . . . 1 . . . . . . . Parts Attached 425 | 6 4 6 7 22 2 4 7 3 18 13 15 9 38 15 30 21 26 . 19 10 9 19 4 14 12 12 8 31 17 11 1 12 Power 54 | 1 1 1 . 1 . . 1 . 1 2 3 . 8 . 7 3 4 . 2 1 . 3 1 2 2 2 1 3 1 1 1 1 Engine 17 | 1 1 1 . 1 . . 1 . 1 1 2 . 5 . 2 1 . . . . . . . . . . . . . . . . Core 12 | . . . . . . . . . . . 1 . 2 . 5 1 1 . . 1 . . . . . . . . 1 . . . Reactor 25 | . . . . . . . . . . 1 . . 1 . . 1 3 . 2 . . 3 1 2 2 2 1 3 . 1 1 1 Propulsion 121 | 3 . 2 1 8 1 1 1 1 8 4 2 2 10 7 11 7 8 . 2 2 3 4 1 2 4 6 2 7 5 3 . 3 Treads 12 | . . . . . . . 1 . 4 . . . . 7 . . . . . . . . . . . . . . . . . . Leg 98 | 2 . . . 5 . . . 1 2 4 2 2 10 . 11 7 8 . 2 2 3 4 1 2 4 6 2 7 5 3 . 3 Wheel 11 | 1 . 2 1 3 1 1 . . 2 . . . . . . . . . . . . . . . . . . . . . . . Hover . | . . . . . . . . . . . . . . . . . . . . . . . . . . . . . . . . . Flight . | . . . . . . . . . . . . . . . . . . . . . . . . . . . . . . . . . Utility 156 | . 1 2 3 5 1 2 5 1 4 6 6 4 14 5 6 6 5 . 9 3 4 9 2 9 3 3 4 19 5 5 . 5 Device 45 | . . 1 . 2 . . 1 . 1 2 1 . 2 1 3 1 1 . 4 . 3 1 1 1 1 . 2 10 1 . . 5 Storage 9 | . . 1 1 . 1 . . . . . . . 3 . . . . . 2 . . . . . . . . 1 . . . . Processor 15 | . . . . 1 . . 2 1 . . . . 1 . 2 1 1 . . . 1 1 . . 2 . . . 1 1 . . Hackware 56 | . . . . . . . . . 2 1 3 3 5 3 1 4 2 . 3 2 . 5 1 7 . 3 2 6 2 1 . . Protection 30 | . 1 . 2 2 . 2 2 . 1 3 2 1 3 1 . . 1 . . 1 . 2 . 1 . . . 2 . 3 . . Artifact 1 | . . . . . . . . . . . . . . . . . . . . . . . . . . . . . 1 . . . Weapon 94 | 2 2 1 3 8 . 1 . 1 5 1 4 3 6 3 6 5 9 . 6 4 2 3 . 1 3 1 1 2 6 2 . 3 Energy Gun 21 | . 1 . 1 4 . . . 1 2 . . 2 1 . 1 2 2 . . . . . . . 2 . . 1 1 . . . Energy Cannon 14 | . . . 1 1 . . . . 1 . 3 . 1 1 . . . . 1 . 1 1 . . . . . . 2 . . 1 Ballistic Gun 26 | 2 1 1 1 3 . . . . 1 . . . . 1 5 3 4 . 1 . . . . . 1 1 . 1 . . . . Ballistic Cannon 19 | . . . . . . . . . . 1 . . 2 . . . 3 . 1 3 1 1 . . . . 1 . 2 2 . 2 Launcher 4 | . . . . . . . . . . . 1 . . 1 . . . . . 1 . . . 1 . . . . . . . . Special Weapon 7 | . . . . . . . . . 1 . . 1 2 . . . . . 1 . . 1 . . . . . . 1 . . . Impact Weapon . | . . . . . . . . . . . . . . . . . . . . . . . . . . . . . . . . . Slashing Weapon . | . . . . . . . . . . . . . . . . . . . . . . . . . . . . . . . . . Piercing Weapon . | . . . . . . . . . . . . . . . . . . . . . . . . . . . . . . . . . Special Melee Weapon 3 | . . . . . . 1 . . . . . . . . . . . . 2 . . . . . . . . . . . . . Unidentified Prototypes 30 | . . 1 1 4 . . . . 2 1 2 . 2 . 1 . 2 . 4 . 2 . . . 3 . . . 3 . 1 1 Corrupted Parts 3 | . . . . . . . . . . . . . . 1 . . . . . . . . . . . . . . . . . 2 System Corruption 19 | . . . . . . . . . . . . . . 8 . . . . . . . . . . . . . . . . . 11 Parts Lost 148 | . . 2 . 7 . 1 1 3 1 4 . 5 10 16 10 11 4 2 . 6 . 10 . 5 1 2 . 16 1 7 . 23 Power 21 | . . 1 . . . . . . . . . 2 1 1 3 1 . . . . . 3 . 1 . . . 2 1 2 . 3 Propulsion 50 | . . 1 . 3 . 1 . 2 1 . . 2 5 7 2 6 1 . . 2 . 2 . 2 1 . . 4 . 1 . 7 Utility 51 | . . . . 2 . . 1 . . 2 . . 3 6 2 2 2 1 . 4 . 4 . 2 . 2 . 8 . 2 . 8 Weapon 26 | . . . . 2 . . . 1 . 2 . 1 1 2 3 2 1 1 . . . 1 . . . . . 2 . 2 . 5 Highest Loss Streak 22 | . . 2 . 2 . 1 1 2 1 2 . 2 3 6 3 3 4 2 . 4 . 3 . 2 1 1 . 8 1 3 . 22 To Critical Strikes 2 | . . . . . . . . . . . . . 1 . . . . . . . . . . 1 . . . . . . . . Average Backups 17 | 1 3 4 3 7 13 6 7 10 15 14 12 14 16 9 12 18 19 19 22 22 24 23 22 23 23 24 24 23 23 23 22 21 Power 1 | . 1 1 1 1 2 2 2 2 2 1 . . . . . 2 2 3 4 3 3 2 2 1 2 2 3 2 2 2 . . Propulsion 1 | . 1 2 1 2 3 . . . . . . . 2 1 1 2 1 . 2 1 1 2 . . 1 2 3 3 4 3 2 2 Utility 9 | . . . . . 2 2 2 5 11 8 8 10 9 5 4 10 11 11 8 11 16 14 14 16 16 15 14 13 10 12 16 14 Weapon 2 | . . . . 2 5 1 1 . . 2 2 2 2 1 2 2 3 4 5 5 2 3 5 3 3 3 2 3 4 2 2 1 Tool/Special . | . . . . . . . . . . . . . . . . . . . . . . . . . . . . . . . . . Unused Backups 69 | . . . . 4 3 1 3 . 1 4 1 3 2 . . 7 2 . . 2 . 6 . 2 1 5 1 . 1 6 . 14 Power 7 | . . . . 2 . . 3 . . . . . . . . 1 . . . . . 1 . . . . . . . . . . Propulsion 5 | . . . . 1 . . . . . . . . 1 . . . 1 . . . . . . . . . 1 . . 1 . . Utility 39 | . . . . . . . . . . 3 1 2 . . . 5 . . . 1 . 5 . 2 . 4 . . . 3 . 13 Weapon 15 | . . . . 1 3 1 . . . 1 . 1 1 . . 1 . . . 1 . . . . 1 1 . . 1 2 . . Tool/Special 3 | . . . . . . . . . 1 . . . . . . . 1 . . . . . . . . . . . . . . 1 Average Slot Usage (%) 93 | . 70 82 88 95 100 99 88 94 87 87 93 95 92 89 91 98 90 92 93 97 99 88 90 95 94 98 95 94 95 93 98 90 Engine 3 | . 14 13 11 10 11 11 7 7 7 2 11 10 8 . . . . . . . . . . . . . . . . . . . Core 1 | . . . . . . . . . . . 1 . . 5 8 5 1 . . 8 10 2 . . . . . . 2 2 . . Reactor 3 | . . . . . . . . . . 4 . . . 3 . 3 8 10 10 1 . 4 8 9 8 8 8 7 5 5 6 7 Treads 2 | . . . . . . . 5 4 17 21 . . . 22 6 . . . . . . . . . . . . . . . . . Leg 20 | . 14 14 2 20 . . . 5 5 8 26 25 28 2 18 27 25 26 22 25 25 25 28 27 25 26 26 25 22 22 26 19 Wheel 3 | . 13 13 28 11 33 32 23 14 3 . . . . . . . . . . . . . . . . . . . . . . . Device 5 | . . 7 . 6 . . 3 7 5 3 9 6 1 6 10 2 1 5 8 9 4 6 13 7 3 4 7 13 4 5 4 12 Storage 5 | . . . 11 11 11 11 7 7 7 7 6 6 5 5 5 5 5 5 5 5 5 5 4 4 4 4 4 4 4 4 4 4 Processor 6 | . . . . 6 11 11 11 15 13 7 6 3 4 5 8 7 3 5 5 5 5 2 4 4 5 8 8 4 6 6 4 3 Hackware 19 | . . . . . . . . . 1 8 11 20 21 20 15 29 29 26 30 29 31 27 19 30 30 30 26 23 34 29 30 23 Protection 4 | . 2 6 13 6 11 11 12 15 7 6 6 6 4 2 1 . 4 4 . 1 4 4 4 1 4 1 . . . 3 7 7 Energy Gun 2 | . 2 . 4 8 11 11 7 7 6 3 . 2 . . . 1 2 . 2 . . . . . 3 3 3 3 . 1 . . Energy Cannon 2 | . . . . 3 11 9 7 6 6 7 3 3 1 4 4 . . . . . 1 . . . . 1 4 3 4 1 . 2 Ballistic Gun 2 | . 24 28 17 10 . . . . . . . . . 2 4 5 3 4 . . 1 . . . . 3 . 1 1 . . . Ballistic Cannon 2 | . . . . . . . . . . . 2 . 7 . . . 1 4 3 5 5 3 . 3 2 . . . 2 7 8 7 Special Weapon 1 | . . . . . . . . . . 1 3 2 2 1 . 3 2 . 3 2 2 3 4 2 4 2 1 2 3 1 4 1 Peak Build Rating 177 | 5 6 19 11 21 21 22 35 40 50 68 75 75 86 73 86 88 114 115 128 127 111 119 122 132 148 151 154 167 161 163 155 177 Average Rating 88 | 3 5 12 9 15 20 20 30 37 44 51 69 69 76 59 71 80 99 111 121 112 107 104 118 120 132 143 148 149 151 155 153 163 On Entrance 80 | . 5 6 6 11 21 21 22 35 38 46 57 71 63 67 49 85 80 114 93 126 110 108 104 121 123 143 151 154 151 161 148 155 Naked Turns 10 | . . . . . . . . . . . . . . . . . . . . . . . . . . . . . . . . 10 Heaviest Build 170 | 6 9 28 37 42 42 44 57 117 127 69 72 71 91 83 90 78 107 107 137 144 139 144 136 158 155 152 154 170 144 160 139 170 Greatest Support 174 | 20 10 10 30 32 32 32 32 32 82 82 76 78 92 100 100 95 115 125 135 135 120 123 136 136 145 158 166 166 174 174 164 171 Greatest Overweight (x) 56 | . . 3 3 3 1 1 1 11 12 1 1 . 1 2 2 1 1 . 1 1 1 1 . 1 1 . . 56 . 1 . 2 Average Overweight (x) . | . . . 1 1 1 1 1 2 4 . . . . . . . . . . . 1 . . . . . . . . . . . Largest Inventory Capacity 25 | 5 5 15 15 15 25 15 15 25 25 15 15 15 20 20 20 20 20 20 25 25 25 25 25 25 25 25 25 25 25 25 25 25 Average Capacity 20 | 5 5 5 15 15 15 15 15 15 18 15 15 15 19 20 20 20 20 20 24 25 25 25 25 25 25 25 25 25 25 25 25 24 Most Carried 25 | 2 5 5 5 15 15 15 15 17 18 15 15 15 20 13 18 20 20 20 25 25 25 25 24 25 25 25 25 25 25 25 24 24 Average Carried 18 | 1 3 4 3 7 14 14 14 13 15 14 13 14 16 9 12 18 19 19 22 22 24 23 22 23 23 24 24 23 23 23 22 22 Final Capacity 25 | 5 5 15 15 15 15 15 15 25 15 15 15 15 20 20 20 20 20 20 25 25 25 25 25 25 25 25 25 25 25 25 25 5 Final Carried 25 | 2 3 5 3 14 15 15 15 17 15 15 14 14 10 9 17 20 20 19 24 25 24 25 22 24 25 25 23 22 25 24 22 3 Class Distribution -------------------- 48% | Botlord-Mutant 19% | Bothacker-Mutant 13% | Botlord-Gunner 7% | Scavenger-Mutant 5% | Mutant Dominant Class ---------------- Mutant | -10/Materials Mutant | -10/Mines Scavenger-Mutant | -9/Materials Scavenger-Mutant | -9/Storage Mutant | -9/Garrison Commander-Mutant | -9/Recycling Scavenger-Mutant | -7/Factory Scavenger-Mutant | -7/Garrison Bothacker-Mutant | -7/Factory Bothacker-Mutant | -7/Garrison Bothacker-Mutant | -6/Factory Botlord-Mutant | -6/Garrison Botlord-Mutant | -5/Factory Bothacker-Mutant | -5/Garrison Bothacker-Mutant | -5/Factory Botlord-Mutant | -5/Garrison Botlord-Mutant | -4/Factory Botlord-Mutant | -4/Waste Botlord-Mutant | -4/Factory Botlord-Mutant | -4/Garrison Botlord-Mutant | -4/Factory Botlord-Mutant | -4/Garrison Botlord-Mutant | -3/Research Botlord-Mutant | -3/Garrison Botlord-Gunner | -2/Research Botlord-Gunner | -2/Garrison Botlord-Gunner | -2/Research Botlord-Gunner | -2/Garrison Botlord-Gunner | -2/Quarantine Botlord-Gunner | -2/Garrison Botlord-Gunner | -2/Section 7 Botlord-Tank | -1/Access Resources | -11 -10 -10 -9 -9 -9 -9 -7 -7 -7 -7 -6 -6 -5 -5 -5 -5 -4 -4 -4 -4 -4 -4 -3 -3 -2 -2 -2 -2 -2 -2 -2 -1 ----------- Run | Yrd Mat Min Mat Sto Gar Rec Fac Gar Fac Gar Fac Gar Fac Gar Fac Gar Fac Was Fac Gar Fac Gar Res Gar Res Gar Res Gar Qua Gar Sec Acc Matter Collected 18073 | 201 143 153 151 439 16 163 72 79 315 362 388 404 1885 717 1248 786 448 3 1465 1038 293 1280 . 1580 722 440 189 1060 598 647 25 763 Remotely . | . . . . . . . . . . . . . . . . . . . . . . . . . . . . . . . . . Salvage Created 13809 | . 143 78 119 854 240 483 396 356 951 696 409 902 611 780 1231 762 390 . 540 387 158 442 . 368 71 189 . 896 176 433 . 748 Parts 621 | . 19 9 4 55 16 25 18 10 46 27 17 33 37 28 62 36 8 . 27 15 7 21 . 17 1 11 . 26 5 18 . 23 Haulers Intercepted 7 | . . . . 3 . . . . . . . . . . 1 . . . 1 . . . . . . . . . . . . 2 Recyclers Shooed 15 | . . . 3 1 . . . . 3 . 1 . . . 2 . 4 . 1 . . . . . . . . . . . . . Parts Field Recycled . | . . . . . . . . . . . . . . . . . . . . . . . . . . . . . . . . . Retrieved Matter . | . . . . . . . . . . . . . . . . . . . . . . . . . . . . . . . . . Parts Self-Destructed . | . . . . . . . . . . . . . . . . . . . . . . . . . . . . . . . . . Prevented . | . . . . . . . . . . . . . . . . . . . . . . . . . . . . . . . . . Kills | -11 -10 -10 -9 -9 -9 -9 -7 -7 -7 -7 -6 -6 -5 -5 -5 -5 -4 -4 -4 -4 -4 -4 -3 -3 -2 -2 -2 -2 -2 -2 -2 -1 ------- Run | Yrd Mat Min Mat Sto Gar Rec Fac Gar Fac Gar Fac Gar Fac Gar Fac Gar Fac Was Fac Gar Fac Gar Res Gar Res Gar Res Gar Qua Gar Sec Acc Combat Hostiles Destroyed 262 | . 9 4 1 14 9 10 6 9 15 13 6 14 19 13 15 17 2 . 9 12 1 12 . 14 1 3 . 14 3 8 . 9 Melee 1 | . . . . . . . . . . . . . . . . . . . . . . . . 1 . . . . . . . . Guns 100 | . 9 4 1 14 5 3 . 2 6 4 . 2 1 1 14 17 1 . 3 2 . . . . . 3 . 7 . 1 . . Cannons 123 | . . . . . 4 4 6 7 8 5 2 3 18 4 1 . 1 . 6 6 1 12 . 10 1 . . 6 3 7 . 8 AOE 24 | . . . . . . 2 . . . 2 3 6 . 3 . . . . . 4 . . . 3 . . . 1 . . . . Classes Destroyed 20 | . 1 2 2 5 . 2 1 2 . . . 1 1 . . . 1 . . . . . . 1 . . . . . . . 1 Worker 18 | . . . . 3 . . . . 2 . 2 . 1 . 3 . 1 . 3 . . . . . . . . . . . . 3 Builder 4 | . . . . 1 . . . . . . . . 1 . 1 . . . . . . . . . . . . . . . . 1 Tunneler 2 | . . 1 . . . . . . 1 . . . . . . . . . . . . . . . . . . . . . . . Hauler 7 | . . . . 3 . . . . . . . . . . 1 . . . 1 . . . . . . . . . . . . 2 Recycler 12 | . . . 1 1 . 1 1 . 3 . . . . . 2 . 2 . . . 1 . . . . . . . . . . . Operator 1 | . . . . . . . . . . . . . . . . . 1 . . . . . . . . . . . . . . . Watcher 6 | . . . . 2 . . 1 . . . 1 . . . . . . . . . . . . . . . . . 1 . . 1 Swarmer 60 | . 9 3 . 4 6 2 1 1 2 1 . . 2 2 3 8 . . 3 4 . 2 . 5 . . . 1 1 . . . Saboteur 1 | . . . . . . . . . . . . . . . . . . . . . . . . 1 . . . . . . . . Grunt 86 | . . . . 6 3 3 3 2 10 4 3 8 7 9 6 4 1 . . 6 . . . . . . . 7 . 1 . 3 Brawler 5 | . . . . . . . 2 . . . 1 . . . . . . . . . . . . . . . . 2 . . . . Duelist 4 | . . . . . . . . . . . . 2 . . . . . . . . . . . . . . . 1 . 1 . . Protector 2 | . . . . . . 1 . . . . . . . . . . . . . . . . . 1 . . . . . . . . Sentry 31 | . . . 1 4 . 2 . 1 . 3 2 3 2 2 1 2 . . 3 . . 3 . 1 1 . . . . . . . Specialist 3 | . . . . . . . . 1 . . . . 1 . . . . . . . . . . . . . . 1 . . . . Hunter 18 | . . . . . . . . 4 . 1 . . . . 3 . . . . . . 2 . 2 . . . . 1 2 . 3 Programmer 54 | . . . . . . 2 . . 3 4 . 1 7 . 4 3 1 . 3 2 1 5 . 4 . 3 . 4 1 4 . 2 Heavy 1 | . . . . . . . . . . . . . . . . . . . . . . . . . . . . . . . . 1 Behemoth 2 | . . . . . . . . . . . . . 1 1 . . . . . . . . . . . . . . . . . . Assembled 1 | . . 1 . . . . . . . . . . . . . . . . . . . . . . . . . . . . . . Best Kill Streak 9 | . 3 4 1 5 9 5 4 2 5 6 4 3 4 3 4 3 2 . 4 4 1 4 . 3 1 2 . 4 2 3 . 4 Combat Bots Only 9 | . 3 3 1 5 9 4 3 2 3 6 4 3 4 3 3 3 1 . 4 4 1 4 . 3 1 2 . 4 2 3 . 3 Max Kills in Single Turn 3 | . 1 1 1 2 2 2 1 1 2 1 3 2 2 1 3 2 2 . 2 3 1 1 . 2 1 1 . 1 1 1 . 2 Gunslinging 1 | . . . . 1 . . . . . . . . . . . 1 . . . . . . . . . . . . . . . . Exploded 3 | . . . . . . 2 . . . 1 3 2 . 1 . . . . . 3 . . . 2 . . . 1 . . . . Melee 1 | . . . . . . . . . . . . . . . . . . . . . . . . 1 . . . . . . . . Uniques/NPCs Destroyed . | . . . . . . . . . . . . . . . . . . . . . . . . . . . . . . . . . Combat | -11 -10 -10 -9 -9 -9 -9 -7 -7 -7 -7 -6 -6 -5 -5 -5 -5 -4 -4 -4 -4 -4 -4 -3 -3 -2 -2 -2 -2 -2 -2 -2 -1 -------- Run | Yrd Mat Min Mat Sto Gar Rec Fac Gar Fac Gar Fac Gar Fac Gar Fac Gar Fac Was Fac Gar Fac Gar Res Gar Res Gar Res Gar Qua Gar Sec Acc Hostile Shots Fired 2652 | . 24 24 14 92 24 30 11 69 90 185 51 120 157 118 174 133 48 2 58 153 10 154 . 116 10 44 26 183 29 128 . 375 Missed 867 | . 6 4 4 22 9 8 1 22 24 71 23 58 44 43 53 28 18 . 23 60 4 51 . 48 3 13 8 46 8 45 . 120 Intercepted 1 | . . . . . . . . . . . . . . . . . . . . . . . . 1 . . . . . . . . Hits 1785 | . 18 20 10 70 15 22 10 47 66 114 28 62 113 75 121 105 30 2 35 93 6 103 . 68 7 31 18 137 21 83 . 255 Melee 20 | . . . . . . . 2 . 1 . . . 1 . . . . 2 . . . . . 2 . 2 . 8 . 1 . 1 Projectile 1765 | . 18 20 10 70 15 22 8 47 65 114 28 62 112 75 121 105 30 . 35 93 6 103 . 66 7 29 18 129 21 82 . 254 AOE 13 | . . . . . . . . . . . . . . 5 . 1 2 . . . . . . 5 . . . . . . . . Critical Strikes 88 | . . . 2 2 . 1 2 . . 5 . 2 6 4 8 5 2 1 2 2 . 5 . 4 . 4 2 13 2 2 . 12 Actively Blocked 3 | . . . . . . . . . . . . . . . . . . . . . . . . 1 . . . . . . . 2 Part Disruptions 6 | . . . . . . . . . . . . . . . 1 1 . . . 1 . . . . . . . . . 2 . 1 Damage Taken 33594 | . 140 310 174 809 129 244 151 638 999 1530 459 956 2545 1779 2107 1899 979 65 640 1601 200 1519 . 959 100 650 227 3708 538 2031 . 5508 Core 5107 | . 53 34 23 119 26 33 21 33 42 112 50 178 214 209 241 251 87 . 49 106 . 72 . 137 . 36 21 1133 56 154 . 1617 Absorbed by Shields 3315 | . . . . . . 62 46 . . . . . . . . . . . 17 240 . 363 . 798 106 162 238 963 . 59 . 261 Redirected to Core 144 | . . . . . . . . . . . . . . . . . . . . . . . . . . . . . . . . 144 Redirected to Shielding 128 | . . . . . . . . . . . . . . . . . . . . . . . . 18 . . . . . 18 . 92 Ignored by Resistances 447 | . . . . . . . . . . . . . . 10 108 85 . . 124 . . . . . . . . . . . . 120 Core Remaining (%) 58 | 100 . 65 . . . 49 . . . 70 . 73 . . . 8 . . . . . 72 . 89 . . . . . . 3 . Volleys Fired 1330 | . 16 16 16 64 18 15 14 32 51 50 40 62 96 67 71 71 35 6 50 75 11 80 . 78 15 39 23 93 33 39 5 49 Largest 3 | . 2 2 2 2 2 2 2 2 2 2 2 2 2 2 2 2 2 2 2 2 2 2 . 2 2 3 3 3 3 3 1 3 Hottest 263 | . 60 40 76 80 80 101 91 91 149 115 73 225 165 128 171 93 135 86 143 143 165 152 . 116 152 239 233 239 263 233 58 236 Shots Fired 2193 | . 32 32 32 124 29 29 28 60 74 83 41 86 166 78 127 107 63 12 73 113 16 112 . 113 19 54 45 171 48 102 5 119 Gun 802 | . 32 32 32 118 11 18 14 28 23 29 . 30 2 11 93 92 47 6 25 8 . . . . 4 22 20 73 8 24 . . Cannon 1048 | . . . . 6 18 11 14 32 44 46 24 28 144 55 25 . 13 6 34 86 12 73 . 84 4 6 13 59 25 74 2 110 Launcher 40 | . . . . . . . . . . . 1 23 . 7 . . . . . 2 . . . 2 . . . 5 . . . . Special 303 | . . . . . . . . . 7 8 16 5 20 5 9 15 3 . 14 17 4 39 . 27 11 26 12 34 15 4 3 9 Kinetic 1074 | . 31 32 31 75 . . . . . 1 9 . 137 16 85 78 52 12 38 88 7 70 . 83 4 8 11 43 15 64 2 82 Thermal 617 | . . . 1 44 18 18 28 55 62 34 15 58 5 . 31 . 8 . 19 . 5 . . 1 4 20 22 89 18 34 . 28 Explosive 9 | . . . . . . . . . . . . . . . . . . . . 2 . . . 2 . . . 5 . . . . Electromagnetic 190 | . 1 . . 5 11 11 . 5 5 40 1 23 4 57 2 14 . . 2 6 . 3 . . . . . . . . . . Robot Hit Streak 33 | . 4 3 10 12 4 9 5 12 15 11 4 9 10 17 27 33 7 9 10 9 7 10 . 14 8 11 7 19 12 11 3 10 Robot Miss Streak 7 | . 3 3 2 5 3 2 1 3 3 3 3 4 5 2 3 4 7 1 6 5 1 3 . 5 2 2 4 3 3 6 1 3 Penetration Max 2 | . . . . . . . . . . . . . 1 . 1 . 1 . . . . . . . . . . 2 . . . . Secondary Targets 11 | . . 2 . 4 . 1 . . . . . . . . . 4 . . . . . . . . . . . . . . . . Max Gunslinging Chain 1 | . . 1 . 1 . 1 . . . . . . . . . 1 . . . . . . . . . . . . . . . . Shots Hit Robots 1445 | . 15 17 24 78 14 38 21 36 54 55 26 47 99 57 98 78 36 10 49 66 10 82 . 58 15 41 31 130 24 66 3 67 Core Hits 536 | . 10 8 4 35 10 12 10 11 37 25 14 29 34 20 43 31 16 . 18 24 3 14 . 22 5 5 5 37 6 20 . 28 Critical Kills 10 | . 1 . . . . 1 . . 1 . 1 . . . . 2 . . . . . . . . . 1 . . . . . 3 Critical Parts Destroyed 5 | . . 1 . 1 . . . . . . . . . . . 1 . . . . . . . . . . 2 . . . . . Critical Strikes 65 | . 1 1 . 5 . 1 1 1 1 . 1 . 14 1 . 3 1 2 4 2 . 3 . 6 2 2 2 1 1 3 . 6 Burn 9 | . . . . 3 . . 1 1 . . . . . . . . . . . . . . . . 2 1 . 1 . . . . Meltdown 4 | . . . . . . 1 . . 1 . 1 . . . . . . . . . . . . . . . . . . . . 1 Destroy 14 | . 1 1 . 2 . . . . . . . . . . . 3 . 2 . . . . . . . 1 2 . . . . 2 Blast 36 | . . . . . . . . . . . . . 14 . . . 1 . 3 2 . 3 . 6 . . . . 1 3 . 3 Corrupt 2 | . . . . . . . . . . . . . . 1 . . . . 1 . . . . . . . . . . . . . Melee Attacks 52 | . . . . . . 13 . . . . . . . . . . . . 1 1 . 7 . . . 9 . 9 . 12 . . Impact . | . . . . . . . . . . . . . . . . . . . . . . . . . . . . . . . . . Slashing . | . . . . . . . . . . . . . . . . . . . . . . . . . . . . . . . . . Piercing . | . . . . . . . . . . . . . . . . . . . . . . . . . . . . . . . . . Sneak Attacks 42 | . . . . . . 12 . . . . . . . . . . . . 1 . . 5 . . . 9 . 6 . 9 . . Combat Hostiles 11 | . . . . . . . . . . . . . . . . . . . . . . 3 . . . . . . . 8 . . Follow-up Attacks . | . . . . . . . . . . . . . . . . . . . . . . . . . . . . . . . . . Damage Inflicted 41408 | . 162 202 245 1005 300 617 566 888 1411 1536 954 1896 3717 1995 2542 1660 1132 370 1714 2596 319 1828 . 2224 281 375 869 4251 496 2110 . 3147 Guns 11954 | . 162 202 245 973 138 282 150 318 496 488 . 337 39 147 1591 1575 770 159 558 145 . . . . 113 375 446 1615 98 532 . . Cannons 24548 | . . . . 32 162 265 416 570 915 810 648 444 3414 1297 569 . 348 211 960 2043 319 1828 . 1793 168 . 411 1884 398 1578 . 3065 Explosions 4835 | . . . . . . 70 . . . 238 306 1115 250 551 382 85 . . 196 408 . . . 431 . . . 752 . . . 51 Melee . | . . . . . . . . . . . . . . . . . . . . . . . . . . . . . . . . . Ramming 71 | . . . . . . . . . . . . . 14 . . . 14 . . . . . . . . . 12 . . . . 31 Kinetic 21873 | . 151 202 231 538 . . . . . . 417 . 3264 289 1494 1342 1019 370 1032 2026 91 1828 . 1793 168 134 267 1116 311 1497 . 2293 Thermal 13393 | . . . 14 408 162 467 566 815 1333 883 379 905 127 272 764 85 99 . 620 . 228 . . . 113 241 590 2752 185 613 . 772 Explosive 1771 | . . . . . . . . . . . . . 250 . 248 . . . . 408 . . . 431 . . . 383 . . . 51 Electromagnetic 4300 | . 11 . . 59 138 150 . 73 78 653 158 991 62 1434 36 233 . . 62 162 . . . . . . . . . . . . Impact . | . . . . . . . . . . . . . . . . . . . . . . . . . . . . . . . . . Slashing . | . . . . . . . . . . . . . . . . . . . . . . . . . . . . . . . . . Piercing . | . . . . . . . . . . . . . . . . . . . . . . . . . . . . . . . . . Highest Corruption 31 | . . . . 2 2 4 2 2 5 8 . 3 10 9 12 18 . . . . . 4 . 2 . 1 1 20 20 30 31 13 Average Corruption 6 | . . . . 1 2 2 2 2 2 7 . 1 5 1 10 15 . . . . . 3 . 1 . 1 1 13 12 20 30 12 Corruption Purged 10 | . . . . . . . . . . . . . 10 . . . . . . . . . . . . . . . . . . . Corruption Blocked . | . . . . . . . . . . . . . . . . . . . . . . . . . . . . . . . . . Effects 425 | . . . . 1 5 15 4 15 28 24 . 10 54 4 34 58 . . . . . 27 . 9 . 9 2 52 30 27 10 7 Message Errors 113 | . . . . 1 . 4 1 6 9 7 . 3 14 1 7 14 . . . . . 8 . . . 2 . 17 9 8 2 . Matter Fused 87 | . . . . . 4 5 1 4 7 4 . 2 12 . 10 11 . . . . . 5 . 1 . 1 . 8 3 6 2 1 Heat Flow Errors 42 | . . . . . 1 1 . 2 3 3 . . 6 . 2 9 . . . . . 2 . 2 . 1 1 3 2 1 2 1 Energy Discharges 54 | . . . . . . 1 1 . 3 1 . 1 9 1 5 9 . . . . . 2 . 2 . . . 7 7 1 2 2 Parts Rejected 4 | . . . . . . . . 1 . . . . . . 1 . . . . . . . . . . . . . . 1 . 1 Parts Fused 4 | . . . . . . . . . 1 2 . . 1 . . . . . . . . . . . . . . . . . . . Data Loss (minor) 48 | . . . . . . 2 . 1 2 4 . 1 5 1 4 8 . . . . . 5 . 2 . 4 . 5 3 . 1 . Data Loss (major) 22 | . . . . . . 1 1 . 2 2 . 2 3 . 1 3 . . . . . 1 . 1 . . 1 2 2 . . . Misfires 24 | . . . . . . . . 1 1 1 . . 3 1 1 4 . . . . . 2 . 1 . 1 . 3 . 5 . . Alerts 6 | . . . . . . . . . . . . 1 . . 1 . . . . . . 1 . . . . . 3 . . . . Misdirections 3 | . . . . . . . . . . . . . . . . . . . . . . . . . . . . . . . 1 2 Weapon Failures 18 | . . . . . . 1 . . . . . . 1 . 2 . . . . . . 1 . . . . . 4 4 5 . . Overload Shots 1 | . . . . . . . . . . . . 1 . . . . . . . . . . . . . . . . . . . . Overflow Damage 1063 | . . . . . 13 29 15 26 17 71 12 . 81 6 140 . 9 . 91 151 19 97 . 61 . . . 50 5 149 . 21 Projectiles 795 | . . . . . 13 29 15 26 17 24 12 . 77 6 . . 5 . 47 136 19 97 . 61 . . . 36 5 149 . 21 Explosions 264 | . . . . . . . . . . 47 . . 4 . 140 . . . 44 15 . . . . . . . 14 . . . . Melee 4 | . . . . . . . . . . . . . . . . . 4 . . . . . . . . . . . . . . . Knockbacks 100 | . . . . . . . . . . . 1 . 16 2 . . 2 . 1 21 1 12 . 11 . . . 1 1 17 . 14 Impact . | . . . . . . . . . . . . . . . . . . . . . . . . . . . . . . . . . Kinetic 97 | . . . . . . . . . . . 1 . 16 2 . . 2 . 1 21 1 12 . 11 . . . 1 1 16 . 12 Secondary 3 | . . . . . . . . . . . . . . . . . . . . . . . . . . . . . . 1 . 2 Self-Inflicted Damage 772 | . . . . . . . . . . 240 . 53 78 29 25 38 . . . . . . . . . . . 309 . . . . Shots 16 | . . . . . . . . . . 3 . 5 1 1 1 1 . . . . . . . . . . . 4 . . . . Rammed . | . . . . . . . . . . . . . . . . . . . . . . . . . . . . . . . . . Targets Rammed 6 | . . . . . . . . . . . . . 1 . . . 1 . . . . . . . . . 1 . 1 . . 2 Kicked 6 | . . . . . . . . . . . . . 1 . . . 1 . . . . . . . . . 1 . 1 . . 2 Crushed . | . . . . . . . . . . . . . . . . . . . . . . . . . . . . . . . . . Highest Temperature 653 | . . . 431 437 204 162 193 271 310 474 . 436 326 321 486 281 245 195 291 416 180 322 . 272 193 174 254 653 77 325 . 183 Average Temperature 108 | . . . 160 159 40 63 72 92 107 132 . 151 91 99 152 99 67 85 71 136 77 81 . 61 84 67 122 260 40 143 . 73 Received Heat Transfer 4723 | . . . 54 378 24 52 49 69 174 213 102 291 432 477 404 336 96 . 36 343 . 149 . 16 12 57 8 274 45 161 . 471 Effects 66 | . . . . 10 . . . . 1 2 . 3 2 . 7 4 . . . 5 . 1 . . . . . 31 . . . . Shutdowns 11 | . . . . 2 . . . . . . . 1 . . 3 . . . . 1 . . . . . . . 4 . . . . Energy Bleed 14 | . . . . 2 . . . . 1 . . . 2 . 2 . . . . 2 . . . . . . . 5 . . . . Interference 13 | . . . . 2 . . . . . . . . . . . 4 . . . 2 . . . . . . . 5 . . . . Matter Decay 6 | . . . . . . . . . . 1 . 1 . . 2 . . . . . . . . . . . . 2 . . . . Short Circuit 5 | . . . . . . . . . . 1 . 1 . . . . . . . . . 1 . . . . . 2 . . . . Damage (minor) 4 | . . . . 1 . . . . . . . . . . . . . . . . . . . . . . . 3 . . . . Damage (major) 9 | . . . . 3 . . . . . . . . . . . . . . . . . . . . . . . 6 . . . . Damage (core) 4 | . . . . . . . . . . . . . . . . . . . . . . . . . . . . 4 . . . . Siege Activations . | . . . . . . . . . . . . . . . . . . . . . . . . . . . . . . . . . Martial Activations . | . . . . . . . . . . . . . . . . . . . . . . . . . . . . . . . . . Shielding Activations . | . . . . . . . . . . . . . . . . . . . . . . . . . . . . . . . . . Robots Disrupted . | . . . . . . . . . . . . . . . . . . . . . . . . . . . . . . . . . Combat Hostiles . | . . . . . . . . . . . . . . . . . . . . . . . . . . . . . . . . . Robots Corrupted 12 | . . . . . . . . . . 2 . 3 . 6 . . 1 . . . . . . . . . . . . . . . Combat Hostiles 10 | . . . . . . . . . . 2 . 3 . 5 . . . . . . . . . . . . . . . . . . Parts Fried 23 | . . . . . . . . 1 . 5 . 7 . 7 . . 2 . 1 . . . . . . . . . . . . . Impact Corruptions 1 | . . . . . . . . . . . . . . . . . 1 . . . . . . . . . . . . . . . Robots Melted 4 | . . . . . . 1 . . 1 . 1 . . . . . . . . . . . . . . . . . . . . 1 Combat Hostiles 4 | . . . . . . 1 . . 1 . 1 . . . . . . . . . . . . . . . . . . . . 1 Parts Melted 35 | . . . . 2 . 2 . 4 3 5 4 3 . . 3 . 1 . . . . . . . . 1 . 1 . . . 6 Heat Transferred 16368 | . . . 37 1199 250 809 1057 1492 2275 1300 446 1186 185 274 1048 100 111 . 618 . . . . . 296 333 333 1614 111 628 . 666 Parts Sabotaged 7 | . . . . . . . . . . . . . . . . . . . . . . . . 7 . . . . . . . . Parts Stolen . | . . . . . . . . . . . . . . . . . . . . . . . . . . . . . . . . . Parts Stripped . | . . . . . . . . . . . . . . . . . . . . . . . . . . . . . . . . . Power Chain Reactions 15 | . . . . . . 1 . . . 3 1 3 . 5 . 1 . . . . . . . . . . . 1 . . . . Alert | -11 -10 -10 -9 -9 -9 -9 -7 -7 -7 -7 -6 -6 -5 -5 -5 -5 -4 -4 -4 -4 -4 -4 -3 -3 -2 -2 -2 -2 -2 -2 -2 -1 ------- Run | Yrd Mat Min Mat Sto Gar Rec Fac Gar Fac Gar Fac Gar Fac Gar Fac Gar Fac Was Fac Gar Fac Gar Res Gar Res Gar Res Gar Qua Gar Sec Acc Maximum Alert Level 3 | . . . . . 1 1 2 2 1 2 1 2 1 2 1 3 2 . 1 2 1 . . 2 1 1 2 2 1 1 . 1 Low Security (%) 43 | 100 100 100 100 100 22 61 . 6 50 7 57 20 28 3 29 2 . 100 62 49 93 100 100 48 73 83 27 10 6 . 100 92 Level 1 41 | . . . . . 77 38 92 42 49 52 42 22 71 62 70 31 65 . 37 40 6 . . 41 26 16 27 40 93 100 . 7 Level 2 14 | . . . . . . . 7 51 . 39 . 57 . 34 . 54 34 . . 10 . . . 9 . . 44 49 . . . . Level 3 . | . . . . . . . . . . . . . . . . 10 . . . . . . . . . . . . . . . . Level 4 . | . . . . . . . . . . . . . . . . . . . . . . . . . . . . . . . . . Level 5 . | . . . . . . . . . . . . . . . . . . . . . . . . . . . . . . . . . High Security . | . . . . . . . . . . . . . . . . . . . . . . . . . . . . . . . . . Max Security . | . . . . . . . . . . . . . . . . . . . . . . . . . . . . . . . . . Peak Influence 759 | . 150 116 156 91 304 304 407 550 288 633 331 489 313 471 301 759 511 110 319 415 217 190 95 434 243 246 470 527 377 305 149 258 Initial 398 | . . 46 25 48 6 136 342 170 288 186 331 121 256 207 241 186 398 110 . 100 217 7 95 . 243 1 124 136 292 233 147 47 Average 233 | . 86 47 63 32 217 168 353 379 183 374 184 351 213 310 233 473 387 56 138 238 121 107 48 218 119 136 340 371 270 250 118 119 Influence Increases 14342 | . 210 171 199 486 298 463 462 410 575 587 388 478 1107 474 577 803 621 . 640 475 63 543 . 775 43 392 574 934 571 380 12 631 Destroy 0b10 Robot/C 6100 | . 180 140 120 280 180 280 120 180 360 300 195 210 525 285 315 330 240 . 210 180 15 240 . 240 15 90 180 255 150 150 . 135 Destroy 0b10 Robot/NC 327 | . . 10 10 50 . 10 15 . 40 . 28 . 20 . 32 . 44 . 16 . 4 . . 4 . . 12 . 4 . . 28 Destroy Leader 938 | . 30 10 30 70 20 . 14 10 90 34 70 16 106 . 74 16 56 . 74 8 8 8 . 24 8 8 26 40 26 8 . 54 Allied During Kill 1531 | . . 11 15 . . 16 7 . 9 34 53 . 161 21 50 107 125 . 88 25 3 48 . 87 8 79 218 62 180 52 . 72 Trap Triggered on 0b10 66 | . . . . . . . . 50 . . . . . . . . . . . . . . . . . . 16 . . . . . Successful Hack 230 | . . . 8 21 28 . 5 . 16 . 6 8 3 . . 5 . . . 34 11 . . 17 . 5 . . 28 5 . 30 Select Force Hacks 150 | . . . . . . 150 . . . . . . . . . . . . . . . . . . . . . . . . . . Disable Machine 720 | . . . . 45 60 . . . 15 . 12 24 84 . 60 24 48 . 144 12 12 . . 24 12 12 . 24 72 12 12 12 Anti-Garrison Action 1817 | . . . . . . . . 150 . 114 . 114 . 38 . 265 . . . 152 . 189 . 227 . 190 113 189 . 76 . . Destroy Structure 1536 | . . . 1 5 10 7 1 20 15 66 12 58 148 46 46 32 108 . 108 40 10 46 . 116 . 8 9 268 111 77 . 168 Advance Influence 300 | . . . . . . . 300 . . . . . . . . . . . . . . . . . . . . . . . . . Partial Spotted 24 | . . . . . . . . . . 12 . . . . . 12 . . . . . . . . . . . . . . . . Lose Combat Pursuer 603 | . . . 15 15 . . . . 30 27 12 48 60 84 . 12 . . . 24 . 12 . 36 . . . 96 . . . 132 Influence Decreases 14248 | . 90 225 151 590 4 666 319 104 858 221 848 162 1300 309 772 310 1065 315 496 204 468 383 170 341 475 172 614 596 780 428 196 616 Entered New Map 3481 | . . 74 41 66 4 168 59 74 262 81 302 52 233 89 220 80 361 205 . 44 198 3 75 . 191 1 98 46 228 78 116 32 Time Decay 5537 | . 90 151 110 373 . 318 180 . 526 . 446 . 652 . 392 . 374 70 374 . 270 . 95 . 214 . 246 . 342 . 80 234 Lost Part 1435 | . . . . 70 . 10 10 30 10 40 . 50 100 160 100 110 40 20 . 60 . 75 . 50 10 20 . 160 10 70 . 230 Lost Ally 3284 | . . . . 20 . 20 70 . 60 100 100 60 315 60 60 120 140 20 122 100 . 305 . 291 60 151 120 390 200 280 . 120 Purge Threat 511 | . . . . 61 . 150 . . . . . . . . . . 150 . . . . . . . . . 150 . . . . . Squads Dispatched 78 | . . . . . . . 1 . 11 . 6 . 10 . 8 . 8 . 5 . . . . . 5 . 8 . 11 . . 5 Investigation 4 | . . . . . . . . . 1 . . . 1 . . . . . . . . . . . . . 1 . . . . 1 Extermination 21 | . . . . . . . . . 3 . 2 . 4 . 2 . 1 . 3 . . . . . 1 . 1 . 3 . . 1 Reinforcement 37 | . . . . . . . 1 . 3 . 4 . 5 . 3 . 7 . 2 . . . . . 1 . 2 . 6 . . 3 Assault 4 | . . . . . . . . . 2 . . . . . . . . . . . . . . . . . 2 . . . . . Garrison 12 | . . . . . . . . . 2 . . . . . 3 . . . . . . . . . 3 . 2 . 2 . . . Intercept . | . . . . . . . . . . . . . . . . . . . . . . . . . . . . . . . . . Searches Triggered . | . . . . . . . . . . . . . . . . . . . . . . . . . . . . . . . . . Construction Impeded 8 | . . . . . . . 1 . 1 . 1 . 1 . 2 . 1 . . . . . . . . . . . 1 . . . Haulers Reinforced 4 | . . . . . . . . . . . . . . . 1 . . . 1 . . . . . . . 1 . . . . 1 Active Scanning Responses . | . . . . . . . . . . . . . . . . . . . . . . . . . . . . . . . . . Cargo Convoy Interrupts . | . . . . . . . . . . . . . . . . . . . . . . . . . . . . . . . . . Alert ID Control Effect 144 | . . . . . . . . . . . . . . . 4 6 3 . 2 10 1 12 . 18 3 8 9 15 32 9 2 10 Stealth | -11 -10 -10 -9 -9 -9 -9 -7 -7 -7 -7 -6 -6 -5 -5 -5 -5 -4 -4 -4 -4 -4 -4 -3 -3 -2 -2 -2 -2 -2 -2 -2 -1 --------- Run | Yrd Mat Min Mat Sto Gar Rec Fac Gar Fac Gar Fac Gar Fac Gar Fac Gar Fac Was Fac Gar Fac Gar Res Gar Res Gar Res Gar Qua Gar Sec Acc Distress Signals 20 | . . 1 . 2 . . . . 2 . 1 . 1 . 3 . 1 . . . . . . . 1 . 3 . 4 . . 1 Communications Jammed 150 | . . . . . . . . . . . . . . . . . . . 4 . 1 . . 7 . . . . . . . 138 Distress Signals 148 | . . . . . . . . . . . . . . . . . . . 3 . . . . 7 . . . . . . . 138 Times Spotted 746 | . 10 7 8 20 9 10 8 11 37 23 30 22 48 28 26 36 24 6 26 31 7 39 . 51 9 29 30 60 28 25 3 45 Peak Tracking Total 14 | . 3 3 4 6 3 6 3 2 8 9 6 4 6 8 6 5 5 6 4 5 3 6 1 12 4 13 5 12 4 4 3 14 Tactical Retreats 29 | . . . 1 1 . . . . 1 2 1 1 2 5 . 1 . . . 2 . 1 . 2 . . . 6 . . . 3 Traps | -11 -10 -10 -9 -9 -9 -9 -7 -7 -7 -7 -6 -6 -5 -5 -5 -5 -4 -4 -4 -4 -4 -4 -3 -3 -2 -2 -2 -2 -2 -2 -2 -1 ------- Run | Yrd Mat Min Mat Sto Gar Rec Fac Gar Fac Gar Fac Gar Fac Gar Fac Gar Fac Was Fac Gar Fac Gar Res Gar Res Gar Res Gar Qua Gar Sec Acc Traps Triggered 53 | . 1 . 1 6 2 . 1 5 1 2 3 6 2 6 . 2 1 . . 2 1 4 . 4 . . . 1 . 1 1 . Indirectly 8 | . . . . . . . . . . . . 3 . 5 . . . . . . . . . . . . . . . . . . Trap Hack Attempts 96 | . . . . . . . . . . . . . . . . . . . 12 . . . . . . 27 19 37 . 1 . . Triggered 1 | . . . . . . . . . . . . . . . . . . . . . . . . . . . . 1 . . . . Disarmed 16 | . . . . . . . . . 4 . . . . . 6 . . . . . . . . . . 2 . 3 . 1 . . Reprogrammed 8 | . . . . 4 . . . . . . . . . . . . . . 2 . . . . . . 1 1 . . . . . Reused 5 | . . . . . . . . 5 . . . . . . . . . . . . . . . . . . . . . . . . Traps Extracted . | . . . . . . . . . . . . . . . . . . . . . . . . . . . . . . . . . Installed 8 | . . . . . . . . 8 . . . . . . . . . . . . . . . . . . . . . . . . Triggered 7 | . . . . . . . . 5 . . . . . . . . . . . . . . . . . . 2 . . . . . Most Traps Carried 8 | . . . . . 8 8 8 8 . . . . . . . . . . . . . . . . . . . . . . . . Machines | -11 -10 -10 -9 -9 -9 -9 -7 -7 -7 -7 -6 -6 -5 -5 -5 -5 -4 -4 -4 -4 -4 -4 -3 -3 -2 -2 -2 -2 -2 -2 -2 -1 ---------- Run | Yrd Mat Min Mat Sto Gar Rec Fac Gar Fac Gar Fac Gar Fac Gar Fac Gar Fac Was Fac Gar Fac Gar Res Gar Res Gar Res Gar Qua Gar Sec Acc Machines Disabled 98 | . . . . 3 4 . . 3 1 4 1 5 7 2 5 7 4 . 12 5 1 3 . 7 1 6 1 5 6 3 1 1 Max in Single Turn 7 | . . . . 1 1 . . 1 1 2 1 1 2 1 3 1 . . 7 1 . 1 . 2 . 2 . 1 1 1 1 1 Garrison Access 2 | . . . . . . . . . 1 . . . . . . . . . . . . . . . . . 1 . . . . . Garrison Relay 36 | . . . . . . . . 3 . 2 . 3 . 1 . 5 . . . 4 . 3 . 5 . 5 . 3 . 2 . . Phase Generator 1 | . . . . . . . . . . 1 . . . . . . . . . . . . . . . . . . . . . . Machines Repaired . | . . . . . . . . . . . . . . . . . . . . . . . . . . . . . . . . . Machines Dismantled . | . . . . . . . . . . . . . . . . . . . . . . . . . . . . . . . . . Machines Sabotaged . | . . . . . . . . . . . . . . . . . . . . . . . . . . . . . . . . . Overloaded Fab Kills . | . . . . . . . . . . . . . . . . . . . . . . . . . . . . . . . . . Hacking | -11 -10 -10 -9 -9 -9 -9 -7 -7 -7 -7 -6 -6 -5 -5 -5 -5 -4 -4 -4 -4 -4 -4 -3 -3 -2 -2 -2 -2 -2 -2 -2 -1 --------- Run | Yrd Mat Min Mat Sto Gar Rec Fac Gar Fac Gar Fac Gar Fac Gar Fac Gar Fac Was Fac Gar Fac Gar Res Gar Res Gar Res Gar Qua Gar Sec Acc Machines Accessed 91 | . . 1 4 7 3 11 3 1 8 . 5 1 9 1 3 1 1 . 2 3 3 1 1 2 1 1 2 2 9 1 2 2 Terminals 64 | . . . 4 6 3 6 2 1 4 . 4 1 5 1 1 1 1 . . 3 1 1 . 2 . 1 1 2 8 1 2 2 Fabricators 3 | . . . . . . . . . . . . . 1 . . . . . 1 . 1 . . . . . . . . . . . Repair Stations 1 | . . . . . . . . . . . . . 1 . . . . . . . . . . . . . . . . . . . Recycling Units 9 | . . . . . . 5 . . 2 . . . 1 . 1 . . . . . . . . . . . . . . . . . Scanalyzers . | . . . . . . . . . . . . . . . . . . . . . . . . . . . . . . . . . Garrison Access 13 | . . . . 1 . . 1 . 2 . 1 . 1 . 1 . . . 1 . 1 . 1 . 1 . 1 . 1 . . . Total Hacks 154 | . . 1 5 15 3 21 4 2 13 . 9 1 17 1 4 3 3 . 2 4 7 3 1 4 1 1 5 2 12 1 3 6 Successful 77 | . . 1 1 11 2 10 2 . 9 . 4 1 8 1 3 1 1 . 2 3 3 . 1 2 1 1 1 1 4 1 . 2 Failed 77 | . . . 4 4 1 11 2 2 4 . 5 . 9 . 1 2 2 . . 1 4 3 . 2 . . 4 1 8 . 3 4 Catastrophic 19 | . . . 3 1 1 1 . . . . . . 1 . . . 1 . . . 1 2 . . . . 1 1 4 . 2 . Database Lockouts . | . . . . . . . . . . . . . . . . . . . . . . . . . . . . . . . . . Manual 64 | . . . 5 4 . 19 3 . 5 . 5 . 11 . . . . . . . 3 . . . . . 4 . 2 . 3 . Terminals 121 | . . . 5 14 3 15 3 2 9 . 8 1 11 1 1 3 3 . . 4 3 3 . 4 . 1 4 2 11 1 3 6 Fabricators 5 | . . . . . . . . . . . . . 1 . . . . . 1 . 3 . . . . . . . . . . . Repair Stations 2 | . . . . . . . . . . . . . 2 . . . . . . . . . . . . . . . . . . . Recycling Units 12 | . . . . . . 6 . . 2 . . . 2 . 2 . . . . . . . . . . . . . . . . . Scanalyzers . | . . . . . . . . . . . . . . . . . . . . . . . . . . . . . . . . . Garrison Access 13 | . . . . 1 . . 1 . 2 . 1 . 1 . 1 . . . 1 . 1 . 1 . 1 . 1 . 1 . . . Terminal Hacks 34 | . . 1 1 7 2 2 . . 1 . 1 1 1 1 1 1 1 . . 3 . . . 2 . 1 . 1 3 1 . 2 Record 3 | . . . . . . 1 . . . . . . . . . . . . . . . . . . . . . . 1 . . 1 Robot Analysis 1 | . . . . . . . . . . . 1 . . . . . . . . . . . . . . . . . . . . . Open Door 7 | . . 1 . 2 . . . . . . . . . . . 1 . . . . . . . 1 . 1 . . . 1 . . Level Access Points 1 | . . . . . . . . . . . . . . . . . . . . . . . . . . . . . . . . 1 Branch Access Points 1 | . . . 1 . . . . . . . . . . . . . . . . . . . . . . . . . . . . . Emergency Access Points 6 | . . . . . 1 . . . . . . 1 . 1 . . . . . 1 . . . 1 . . . 1 . . . . Terminal Index 1 | . . . . . . . . . . . . . . . . . . . . . . . . . . . . . 1 . . . Garrison Index 1 | . . . . . . . . . . . . . . . . . . . . . . . . . . . . . 1 . . . Unreport Threat 4 | . . . . 2 . 1 . . . . . . . . . . 1 . . . . . . . . . . . . . . . Locate Traps 1 | . . . . 1 . . . . . . . . . . . . . . . . . . . . . . . . . . . . Disarm Traps 2 | . . . . . . . . . 1 . . . . . 1 . . . . . . . . . . . . . . . . . Reprogram Traps 2 | . . . . 2 . . . . . . . . . . . . . . . . . . . . . . . . . . . . Maintenance Status 1 | . . . . . . . . . . . . . 1 . . . . . . . . . . . . . . . . . . . Garrison Registry 2 | . . . . . 1 . . . . . . . . . . . . . . 1 . . . . . . . . . . . . Security Stations 1 | . . . . . . . . . . . . . . . . . . . . 1 . . . . . . . . . . . . Fabricator Hacks 3 | . . . . . . . . . . . . . 1 . . . . . 1 . 1 . . . . . . . . . . . Build 3 | . . . . . . . . . . . . . 1 . . . . . 1 . 1 . . . . . . . . . . . Repair Station Hacks 2 | . . . . . . . . . . . . . 2 . . . . . . . . . . . . . . . . . . . Scan Component 1 | . . . . . . . . . . . . . 1 . . . . . . . . . . . . . . . . . . . Repair 1 | . . . . . . . . . . . . . 1 . . . . . . . . . . . . . . . . . . . Recycling Unit Hacks 4 | . . . . . . . . . 2 . . . 1 . 1 . . . . . . . . . . . . . . . . . Retrieve Components 4 | . . . . . . . . . 2 . . . 1 . 1 . . . . . . . . . . . . . . . . . Scanalyzer . | . . . . . . . . . . . . . . . . . . . . . . . . . . . . . . . . . Garrison Access Hacks 13 | . . . . 1 . . 1 . 2 . 1 . 1 . 1 . . . 1 . 1 . 1 . 1 . 1 . 1 . . . Unlock Access 13 | . . . . 1 . . 1 . 2 . 1 . 1 . 1 . . . 1 . 1 . 1 . 1 . 1 . 1 . . . Unauthorized Hacks 21 | . . . . 3 . 8 1 . 4 . 2 . 2 . . . . . . . 1 . . . . . . . . . . . Terminals 16 | . . . . 3 . 3 1 . 4 . 2 . 2 . . . . . . . 1 . . . . . . . . . . . Botnet 12 | . . . . 3 . 1 1 . 2 . 2 . 2 . . . . . . . 1 . . . . . . . . . . . Skim 4 | . . . . . . 2 . . 2 . . . . . . . . . . . . . . . . . . . . . . . Fabricators . | . . . . . . . . . . . . . . . . . . . . . . . . . . . . . . . . . Repair Stations . | . . . . . . . . . . . . . . . . . . . . . . . . . . . . . . . . . Recycling Units 5 | . . . . . . 5 . . . . . . . . . . . . . . . . . . . . . . . . . . Tunnel 5 | . . . . . . 5 . . . . . . . . . . . . . . . . . . . . . . . . . . Scanalyzers . | . . . . . . . . . . . . . . . . . . . . . . . . . . . . . . . . . Garrison Access . | . . . . . . . . . . . . . . . . . . . . . . . . . . . . . . . . . Data Cores Recovered 3 | . . . 1 . . . . . . . . . . . . . . . . . . . . . . . . . 2 . . . Used 1 | . . . . . . . . . . . . . . . . . . . . . . . . . . . . . 1 . . . Hacking Detections 55 | . . . 3 3 2 4 2 1 4 . 5 1 8 1 1 . 1 . 1 1 1 1 1 . . . 1 1 8 . 2 2 Full Trace Events 3 | . . . . . . 1 . . . . . . . . . . . . . . . . . . . . 1 . . . . 1 Feedback Events 1 | . . . . . . . . . . . . . . . . . . . . . . . . . . . . . . . . 1 Hackware Fried 1 | . . . . . . . . . . . . . . . . . . . . . . . . . . . . . . . . 1 Feedback Blocked . | . . . . . . . . . . . . . . . . . . . . . . . . . . . . . . . . . Robot Schematics Acquired 5 | . . . . . . . . . . . . . . . . . . . . . . . . . . . . . 5 . . . Robots Built 2 | . . . . . . . . . . . . . 2 . . . . . . . . . . . . . . . . . . . Authchips . | . . . . . . . . . . . . . . . . . . . . . . . . . . . . . . . . . Time 81 | . . . . . . . . . . . . . 81 . . . . . . . . . . . . . . . . . . . Total Robot Build Rating 2 | . . . . . . . . . . . . . 2 . . . . . . . . . . . . . . . . . . . Part Schematics Acquired 5 | . . . . . . . . . . . . . . . . . . . . . . . . . . . . . 5 . . . Parts Built 3 | . . . . . . . . . . . . . . . . . . . 1 . 2 . . . . . . . . . . . Authchips . | . . . . . . . . . . . . . . . . . . . . . . . . . . . . . . . . . Time 278 | . . . . . . . . . . . . . . . . . . . 139 . 139 . . . . . . . . . . . Total Part Build Rating 27 | . . . . . . . . . . . . . . . . . . . 9 . 18 . . . . . . . . . . . Parts Repaired . | . . . . . . . . . . . . . . . . . . . . . . . . . . . . . . . . . Time 50 | . . . . . . . . . . . . . 50 . . . . . . . . . . . . . . . . . . . Parts Recycled . | . . . . . . . . . . . . . . . . . . . . . . . . . . . . . . . . . Recycled Matter . | . . . . . . . . . . . . . . . . . . . . . . . . . . . . . . . . . Retrieved Matter . | . . . . . . . . . . . . . . . . . . . . . . . . . . . . . . . . . Retrieved Components 5 | . . . . . . . . . 5 . . . . . . . . . . . . . . . . . . . . . . . Parts Scanalyzed . | . . . . . . . . . . . . . . . . . . . . . . . . . . . . . . . . . Part Schematics Acquired . | . . . . . . . . . . . . . . . . . . . . . . . . . . . . . . . . . Parts Damaged . | . . . . . . . . . . . . . . . . . . . . . . . . . . . . . . . . . Bothacking | -11 -10 -10 -9 -9 -9 -9 -7 -7 -7 -7 -6 -6 -5 -5 -5 -5 -4 -4 -4 -4 -4 -4 -3 -3 -2 -2 -2 -2 -2 -2 -2 -1 ------------ Run | Yrd Mat Min Mat Sto Gar Rec Fac Gar Fac Gar Fac Gar Fac Gar Fac Gar Fac Was Fac Gar Fac Gar Res Gar Res Gar Res Gar Qua Gar Sec Acc Used RIF Installer 9 | . . . . . 2 . . 1 . 1 . 1 . 1 . . . . . 1 . 1 . 1 . . . . . . . . Hotswap 1 | . . . . . 1 . . . . . . . . . . . . . . . . . . . . . . . . . . . Command Fork 2 | . . . . . . . . 1 . . . . . . . . . . . . . 1 . . . . . . . . . . Threat Obfuscator 1 | . . . . . . . . . . 1 . . . . . . . . . . . . . . . . . . . . . . Zone Cloak 1 | . . . . . . . . . . . . . . . . . . . . . . . . 1 . . . . . . . . Patrol Navigation 1 | . . . . . . . . . . . . 1 . . . . . . . . . . . . . . . . . . . . Alert ID Control 1 | . . . . . . . . . . . . . . 1 . . . . . . . . . . . . . . . . . . Structural Interface 1 | . . . . . . . . . . . . . . . . . . . . 1 . . . . . . . . . . . . Robots Hacked 169 | . . . . . . 2 . . 3 4 9 4 11 3 3 9 3 . 10 8 3 21 . 14 6 14 6 20 7 4 1 4 Non-combat 7 | . . . . . . 2 . . . . . . . . . . . . 3 . . . . . 1 . 1 . . . . . Combat 162 | . . . . . . . . . 3 4 9 4 11 3 3 9 3 . 7 8 3 21 . 14 5 14 5 20 7 4 1 4 Robot Hacks Applied 176 | . . . . . . 3 . . 5 4 10 4 11 3 3 9 3 . 10 8 3 21 . 14 6 14 7 21 7 4 1 5 parse_system 2 | . . . . . . . . . . . . . 1 . . . . . . . . 1 . . . . . . . . . . no_distress 4 | . . . . . . 1 . . . . . . . . . . . . 3 . . . . . . . . . . . . . ignore_repairs 1 | . . . . . . 1 . . . . . . . . . . . . . . . . . . . . . . . . . . ignore_parts 1 | . . . . . . 1 . . . . . . . . . . . . . . . . . . . . . . . . . . purge_threat 1 | . . . . . . . . . . . . . . . . . . . . . . . . . . . 1 . . . . . reprogram_traps 1 | . . . . . . . . . . . . . . . . . . . . . . . . . . . 1 . . . . . reboot_propulsion 1 | . . . . . . . . . . . . . . . . . . . . . . . . . . . . . . . . 1 scatter_targeting 6 | . . . . . . . . . . . . . . . . . . . . . . 2 . . 1 1 . 1 . . . 1 link_complan 1 | . . . . . . . . . . . 1 . . . . . . . . . . . . . . . . . . . . . disrupt_area 1 | . . . . . . . . . . . . . . . . . . . . 1 . . . . . . . . . . . . spike_heat 2 | . . . . . . . . . . . 1 . . . . . . . . . . . . . . . . 1 . . . . overload_power 1 | . . . . . . . . . . . . . . . . . . . . . . . . 1 . . . . . . . . amplify_resonance 1 | . . . . . . . . . . . . . . . . . . . . . . . . . . . . . . . . 1 reboot_system 7 | . . . . . . . . . . . 1 . 1 . . . . . . 1 . 2 . 1 . . . . 1 . . . go_dormant 1 | . . . . . . . . . . . 1 . . . . . . . . . . . . . . . . . . . . . overwrite_iff 12 | . . . . . . . . . 2 . 1 3 . 1 . . . . . . . 2 . 1 . . . 1 1 . . . streamctrl_high 1 | . . . . . . . . . 1 . . . . . . . . . . . . . . . . . . . . . . . formatsys_high 132 | . . . . . . . . . 2 4 5 1 9 2 3 9 3 . 7 6 3 14 . 11 5 13 5 18 5 4 1 2 Relay Couplers Released 151 | . . . . . . . . 13 5 6 3 16 . 4 . 23 . . . 13 . 10 . 18 . 20 1 12 . 7 . . Machine Destruction 142 | . . . . . . . . 13 2 6 . 13 . 4 . 23 . . . 13 . 10 . 18 . 20 1 12 . 7 . . Programmers 9 | . . . . . . . . . 3 . 3 3 . . . . . . . . . . . . . . . . . . . . Attached 49 | . . . . . . . . . 2 1 2 3 4 2 1 4 2 . 3 2 . 5 . 7 . 3 1 6 . 1 . . Fabnet Peak Effective % . | . . . . . . . . . . . . . . . . . . . . . . . . . . . . . . . . . Robots Rewired 40 | . . . . . . 7 . . . . . 6 . 2 . 1 . . . . . . . 4 . 9 . 9 . 2 . . Allies Hacked 16 | . . . . . . 4 . . . . 2 . . . . 1 1 . . 1 . 1 . . . 3 . . 1 2 . . Hacks Repelled 1 | . . . . . . . . . . . . . . . . . . . . . 1 . . . . . . . . . . . Allies | -11 -10 -10 -9 -9 -9 -9 -7 -7 -7 -7 -6 -6 -5 -5 -5 -5 -4 -4 -4 -4 -4 -4 -3 -3 -2 -2 -2 -2 -2 -2 -2 -1 -------- Run | Yrd Mat Min Mat Sto Gar Rec Fac Gar Fac Gar Fac Gar Fac Gar Fac Gar Fac Was Fac Gar Fac Gar Res Gar Res Gar Res Gar Qua Gar Sec Acc Total Allies 244 | . . 3 . . . 7 . . 3 7 6 11 12 5 16 15 3 1 7 7 3 20 . 22 7 26 6 37 9 7 2 2 Largest Group 23 | . . 3 2 2 . 6 6 . 2 5 4 7 11 3 8 12 8 1 5 7 3 5 1 12 5 22 21 22 23 14 5 6 Highest-Rated Group 1438 | . . 40 24 24 . 80 74 . 60 196 137 170 353 85 205 454 437 46 264 154 71 213 30 531 259 1097 1115 1311 1438 937 280 360 Highest-Rated Ally 148 | . . 16 16 16 . 27 27 . 34 80 41 41 68 85 41 148 148 46 58 47 47 56 30 116 69 69 69 148 119 119 58 64 Total Orders 3 | . . . . . . . . . . . . . . . . . . . . . . . . . . . . 2 . 1 . . STAY 2 | . . . . . . . . . . . . . . . . . . . . . . . . . . . . 1 . 1 . . FOLLOW 1 | . . . . . . . . . . . . . . . . . . . . . . . . . . . . 1 . . . . Ally Attacks 1543 | . . 21 22 4 . 7 4 . 15 33 45 11 98 19 74 76 111 1 45 46 9 115 . 109 19 64 125 113 187 72 20 78 Total Damage 50424 | . . 249 188 66 . 211 60 . 486 1000 1592 133 2672 541 1528 1893 3378 38 1535 655 206 3581 . 3686 738 2483 4823 5584 7331 2456 752 2559 Kills 309 | . . 6 6 . . 5 1 . 5 8 11 . 19 7 11 13 26 . 7 11 1 16 . 26 4 11 28 19 42 14 2 10 Allies Corrupted 20 | . . 11 . . . . . . . . 1 . . 1 1 . . . . . . 1 . . . 2 . 1 . 2 . . Allies Melted 2 | . . . . . . . . . . . . . 2 . . . . . . . . . . . . . . . . . . . Intel | -11 -10 -10 -9 -9 -9 -9 -7 -7 -7 -7 -6 -6 -5 -5 -5 -5 -4 -4 -4 -4 -4 -4 -3 -3 -2 -2 -2 -2 -2 -2 -2 -1 ------- Run | Yrd Mat Min Mat Sto Gar Rec Fac Gar Fac Gar Fac Gar Fac Gar Fac Gar Fac Was Fac Gar Fac Gar Res Gar Res Gar Res Gar Qua Gar Sec Acc Active Infowar (turns) 8639 | . . . . . . . 306 955 1235 1 591 . . . 890 214 . . 439 1016 565 987 204 760 . . . . . . . 476 Optics 2496 | . . . . . . . 306 955 1235 . . . . . . . . . . . . . . . . . . . . . . . Traps 2232 | . . . . . . . . . 537 . 591 . . . 890 214 . . . . . . . . . . . . . . . . Spoofing 1 | . . . . . . . . . . 1 . . . . . . . . . . . . . . . . . . . . . . Jamming 4447 | . . . . . . . . . . . . . . . . . . . 439 1016 565 987 204 760 . . . . . . . 476 Robot Analysis Total 1 | . . . . . . . . . . . 1 . . . . . . . . . . . . . . . . . . . . . Derelict Logs Recovered 1 | . . 1 . . . . . . . . . . . . . . . . . . . . . . . . . . . . . . Drone Launches 16 | . . 16 . . . . . . . . . . . . . . . . . . . . . . . . . . . . . . Drone Recoveries 1 | . . 1 . . . . . . . . . . . . . . . . . . . . . . . . . . . . . . Exploration | -11 -10 -10 -9 -9 -9 -9 -7 -7 -7 -7 -6 -6 -5 -5 -5 -5 -4 -4 -4 -4 -4 -4 -3 -3 -2 -2 -2 -2 -2 -2 -2 -1 ------------- Run | Yrd Mat Min Mat Sto Gar Rec Fac Gar Fac Gar Fac Gar Fac Gar Fac Gar Fac Was Fac Gar Fac Gar Res Gar Res Gar Res Gar Qua Gar Sec Acc Turns Passed 26400 | 76 197 394 285 967 377 702 373 955 1473 810 1108 979 2402 708 926 1426 867 159 1457 1016 586 1284 204 1456 452 738 538 1447 762 564 171 541 Spaces Moved 14569 | 57 175 364 215 523 302 591 234 617 520 426 891 626 1184 288 378 791 470 120 683 492 259 683 71 750 146 440 335 728 480 298 125 307 Core 29 | 4 . 5 . . . . . . . . . . . . . . . . . . . . . . . . . 1 . . . 19 Treads 835 | . . . . . . . . . 199 258 . . . 248 130 . . . . . . . . . . . . . . . . . Legs 10555 | 52 . . . 188 . . . . . 168 891 626 1184 40 248 791 470 120 683 492 259 683 71 750 146 440 335 727 480 298 125 288 Wheels 3150 | 1 175 359 215 335 302 591 234 617 321 . . . . . . . . . . . . . . . . . . . . . . . Hover . | . . . . . . . . . . . . . . . . . . . . . . . . . . . . . . . . . Flight . | . . . . . . . . . . . . . . . . . . . . . . . . . . . . . . . . . Fastest Speed 50 | 50 80 80 95 95 98 98 98 98 145 90 97 105 112 114 120 120 114 114 120 120 178 120 120 120 118 116 115 115 115 115 115 50 Average Speed 130 | 114 80 88 98 133 98 98 98 123 190 139 104 107 157 174 163 142 145 117 124 151 183 133 120 145 169 117 115 120 116 118 115 117 Slowest Speed 2850 | 120 80 200 125 330 98 100 98 245 260 241 186 112 190 260 260 190 190 120 195 195 190 186 120 190 190 118 116 2850 118 184 115 250 Overloaded Moves . | . . . . . . . . . . . . . . . . . . . . . . . . . . . . . . . . . Propulsion Burnouts . | . . . . . . . . . . . . . . . . . . . . . . . . . . . . . . . . . Robots Hopped 2 | . . 2 . . . . . . . . . . . . . . . . . . . . . . . . . . . . . . Potential Cave-ins 5 | . . . . . . . . . . . . . . . . . . . . . . . . 5 . . . . . . . . Cave-ins Triggered . | . . . . . . . . . . . . . . . . . . . . . . . . . . . . . . . . . Exploration Rate (%) 39 | 4 33 71 20 65 47 98 8 56 15 50 33 57 37 49 9 71 15 66 19 59 10 66 4 88 6 53 14 71 45 37 9 10 Regions Visited 32 Branch Regions 5 Pre-discovered Areas 6 | . . 1 . . . 5 . . . . . . . . . . . . . . . . . . . . . . . . . . Known Exits Taken 13 | . . . 1 1 . . 1 . 1 . 1 . 1 . 1 . . . 1 . 1 . 1 . 1 . 1 . 1 . . . Unknown Exits Taken 5 | 1 1 1 . . . 1 . . . . . . . . . . . . . . . . . . . . . . . . 1 . Scrap Searched . | . . . . . . . . . . . . . . . . . . . . . . . . . . . . . . . . . Spaces Dug 29 | . . . . . . . . . . . . . 6 . . . . . . 3 2 . . 10 . . . . . . . 8 Terrain Destroyed 669 | . . . . 2 . 5 1 . 11 81 11 11 80 14 36 . 13 . 52 11 4 13 . 68 . . 3 167 13 20 . 53 Melee . | . . . . . . . . . . . . . . . . . . . . . . . . . . . . . . . . . Projectile 265 | . . . . 2 . 2 1 . 11 . 3 . 71 1 6 . 13 . 10 11 4 13 . 32 . . 3 21 13 20 . 28 AOE 404 | . . . . . . 3 . . . 81 8 11 9 13 30 . . . 42 . . . . 36 . . . 146 . . . 25 Terrain Rammed . | . . . . . . . . . . . . . . . . . . . . . . . . . . . . . . . . . Walls Destroyed . | . . . . . . . . . . . . . . . . . . . . . . . . . . . . . . . . . Machines Disabled . | . . . . . . . . . . . . . . . . . . . . . . . . . . . . . . . . . Actions | -11 -10 -10 -9 -9 -9 -9 -7 -7 -7 -7 -6 -6 -5 -5 -5 -5 -4 -4 -4 -4 -4 -4 -3 -3 -2 -2 -2 -2 -2 -2 -2 -1 --------- Run | Yrd Mat Min Mat Sto Gar Rec Fac Gar Fac Gar Fac Gar Fac Gar Fac Gar Fac Was Fac Gar Fac Gar Res Gar Res Gar Res Gar Qua Gar Sec Acc Total 20025 | 64 202 405 258 674 356 675 350 758 930 558 1029 841 1570 417 555 1003 596 126 1223 665 359 971 190 1019 340 638 454 1168 644 444 150 393 Wait 2304 | . 2 14 15 22 2 15 86 36 321 28 40 70 186 16 54 44 29 . 413 22 61 93 115 51 152 38 56 179 87 32 15 10 Move 14523 | 56 174 359 214 522 300 590 233 615 519 424 890 624 1183 286 377 789 470 119 682 490 258 681 70 748 145 438 334 726 480 296 124 307 Hop 2 | . . 2 . . . . . . . . . . . . . . . . . . . . . . . . . . . . . . Pick Up 284 | 2 3 3 . 14 9 2 4 11 1 11 9 13 19 6 8 30 6 . 15 19 2 17 . 18 4 12 2 19 8 15 . 2 Fast Attach 228 | 5 2 3 5 17 . . 6 2 14 9 15 3 12 8 16 7 10 . 6 1 12 8 1 11 9 3 4 15 8 6 2 8 Attach 187 | . 2 2 3 5 1 1 . 2 1 4 10 5 18 8 6 9 6 1 6 14 . 19 3 22 2 2 1 14 3 7 2 8 Detach 68 | . . . 1 2 . . . 1 2 1 5 . 6 . . . 4 . 4 7 1 12 . 11 3 . . 2 3 2 . 1 Swap 279 | 1 2 2 . 8 2 8 1 2 7 10 4 9 21 6 15 18 17 . 23 14 1 25 . 13 2 18 8 22 8 7 . 5 Drop 310 | . 1 4 4 15 8 3 6 9 14 14 16 8 23 2 8 25 18 . 11 10 13 12 1 10 8 15 6 14 14 15 2 1 Fire 1330 | . 16 16 16 64 18 15 14 32 51 50 40 62 96 67 71 71 35 6 50 75 11 80 . 78 15 39 23 93 33 39 5 49 Melee 52 | . . . . . . 13 . . . . . . . . . . . . 1 1 . 7 . . . 9 . 9 . 12 . . Ram . | . . . . . . . . . . . . . . . . . . . . . . . . . . . . . . . . . Kick 5 | . . . . . . . . . . . . . 1 . . . 1 . . . . . . . . . 1 . . . . 2 Crush . | . . . . . . . . . . . . . . . . . . . . . . . . . . . . . . . . . Escape Stasis 138 | . . . . 5 16 . . 40 . 7 . 11 5 . . 10 . . . 10 . 13 . 15 . . . 4 . 2 . . Rewire 211 | . . . . . . 28 . . . . . 36 . 18 . . . . . 2 . 4 . 42 . 37 . 34 . 10 . . Trap 104 | . . . . . . . . 8 . . . . . . . . . . 12 . . . . . . 27 19 37 . 1 . . Miscellaneous . | . . . . . . . . . . . . . . . . . . . . . . . . . . . . . . . . . Route ------- -11/Scrapyard -10/Materials -10/Mines -9/Materials (discovered 5 exits: [*Mat] / Min x2 / *Sto x2) -9/Storage -9/Garrison (discovered 3 exits: *Rec x3) -9/Recycling -7/Factory -7/Garrison (discovered 2 exits: *Fac x2) -7/Factory (discovered 2 exits: [*Low] / Gar) -7/Garrison -6/Factory (discovered 3 exits: *Fac x2 / Gar) -6/Garrison (discovered 2 exits: *Fac x2) -5/Factory (discovered 5 exits: *Fac x3 / [*Upp] / Gar) -5/Garrison -5/Factory -5/Garrison (discovered 3 exits: *Fac x3) -4/Factory (discovered 2 exits: *Res / [*Upp]) -4/Waste -4/Factory -4/Garrison (discovered 4 exits: *Fac x4) -4/Factory -4/Garrison (discovered 2 exits: *Res x2) -3/Research -3/Garrison (discovered 3 exits: *Res x3) -2/Research -2/Garrison -2/Research -2/Garrison (discovered 2 exits: *Qua x2) -2/Quarantine -2/Garrison -2/Section 7 -1/Access (discovered 1 exit: Sur) History --------- Turn | Location | Event 5 | -11/Scrapyard | Discovered new exit (range 14) 77 | -11/Scrapyard | Entered Materials 245 | -10/Materials | Discovered new exit (range 12) 274 | -10/Materials | Entered Mines 301 | -10/Mines | Build established: Mutant 362 | -10/Mines | Learned location of Zion (-6) 441 | -10/Mines | Found the Drone Emporium 445 | -10/Mines | Found Prototype Device 445 | -10/Mines | Identified Bomb Drone Bay 493 | -10/Mines | Assisted by bots powering up and referring to "LRC-V3" 577 | -10/Mines | Excavation squad dispatched 577 | -10/Mines | A large section of the Mines collapsed 649 | -10/Mines | Discovered new exit (range 6) 653 | -10/Mines | Lost 16 allies 668 | -10/Mines | Entered Materials 668 | -9/Materials | Accompanied by 2 allies 668 | -9/Materials | Evolved 2 slots: Propulsion x1, Utility x1 795 | -9/Materials | Discovered new exit (range 7) 905 | -9/Materials | Discovered new exit (range 10) 907 | -9/Materials | Identified exit to Mines 907 | -9/Materials | Identified exit to Storage 953 | -9/Materials | Entered Storage 953 | -9/Storage | Accompanied by 2 allies 1004 | -9/Storage | Build established: Scavenger-Mutant 1919 | -9/Storage | Identified exit to Garrison 1920 | -9/Storage | Entered Garrison 1945 | -9/Garrison | Discovered new exit (range 52) 1945 | -9/Garrison | Discovered new exit (range 32) 1945 | -9/Garrison | Discovered new exit (range 51) 1954 | -9/Garrison | Triggered checkpoint 1956 | -9/Garrison | Build established: Mutant 1989 | -9/Garrison | Triggered checkpoint 2027 | -9/Garrison | Destroyed 9 combat bots 2080 | -9/Garrison | Installed Relay Interface Framework 2176 | -9/Garrison | Expanded RIF knowledge: Hotswap 2297 | -9/Garrison | Entered Recycling 2644 | -9/Recycling | Build established: Commander-Mutant 2848 | -9/Recycling | Core integrity fell below 50% 2891 | -9/Recycling | Discovered new exit (range 14) 2911 | -9/Recycling | Scanned before Scraplab entrance 2926 | -9/Recycling | Entered Scraplab 2999 | -9/Recycling | Entered Factory 2999 | -7/Factory | Accompanied by 6 allies 2999 | -7/Factory | Evolved 4 slots: Propulsion x1, Utility x3 3306 | -7/Factory | Identified exit to Garrison 3372 | -7/Factory | Entered Garrison 3394 | -7/Garrison | Triggered checkpoint 3397 | -7/Garrison | Lost 6 allies 3409 | -7/Garrison | Build established: Scavenger-Mutant 3466 | -7/Garrison | Garrison Relay disabled 3732 | -7/Garrison | Triggered checkpoint 3817 | -7/Garrison | Garrison Relay disabled 3820 | -7/Garrison | Triggered checkpoint 3886 | -7/Garrison | Discovered new exit (range 17) 3888 | -7/Garrison | Triggered checkpoint 4024 | -7/Garrison | Triggered checkpoint 4133 | -7/Garrison | Expanded RIF knowledge: Command Fork 4146 | -7/Garrison | Triggered checkpoint 4235 | -7/Garrison | Garrison Relay disabled 4300 | -7/Garrison | Discovered new exit (range 11) 4327 | -7/Garrison | Entered Factory 4429 | -7/Factory | Build established: Bothacker-Mutant 4699 | -7/Factory | Discovered new exit (range 3) 5095 | -7/Factory | Garrison activated, responded to threat 5432 | -7/Factory | Garrison activated, responded to threat 5518 | -7/Factory | Identified exit to Garrison 5799 | -7/Factory | Identified exit to Garrison 5800 | -7/Factory | Entered Garrison 5978 | -7/Garrison | Expanded RIF knowledge: Threat Obfuscation 6084 | -7/Garrison | Triggered checkpoint 6115 | -7/Garrison | Garrison Relay disabled 6131 | -7/Garrison | Found embedded Infiltrators 6230 | -7/Garrison | Triggered checkpoint 6238 | -7/Garrison | Triggered checkpoint 6239 | -7/Garrison | Triggered checkpoint 6281 | -7/Garrison | Lost 7 allies 6469 | -7/Garrison | Phase Generator disabled 6469 | -7/Garrison | Discovered new exit (range 8) 6520 | -7/Garrison | Triggered checkpoint 6566 | -7/Garrison | Garrison Relay disabled 6610 | -7/Garrison | Entered Factory 6610 | -6/Factory | Evolved 2 slots: Power x1, Utility x1 6807 | -6/Factory | Discovered new exit (range 10) 6879 | -6/Factory | Build established: Botlord-Mutant 7304 | -6/Factory | Build established: Bothacker-Mutant 7433 | -6/Factory | Discovered new exit (range 5) 7577 | -6/Factory | Lost 3 allies 7580 | -6/Factory | Spotted B-75 Beast 7717 | -6/Factory | Identified exit to Garrison 7718 | -6/Factory | Entered Garrison 7868 | -6/Garrison | Triggered checkpoint 7907 | -6/Garrison | Garrison Relay disabled 7977 | -6/Garrison | Triggered checkpoint 8111 | -6/Garrison | Discovered new exit (range 10) 8117 | -6/Garrison | Triggered checkpoint 8208 | -6/Garrison | Build established: Botlord-Mutant 8237 | -6/Garrison | Garrison Relay disabled 8342 | -6/Garrison | Triggered checkpoint 8516 | -6/Garrison | Expanded RIF knowledge: Patrol Navigation 8642 | -6/Garrison | Triggered checkpoint 8649 | -6/Garrison | Discovered new exit (range 8) 8697 | -6/Garrison | Entered Factory 8697 | -5/Factory | Accompanied by 7 allies 8697 | -5/Factory | Evolved 2 slots: Propulsion x1, Utility x1 8838 | -5/Factory | Lost 5 allies 8917 | -5/Factory | Discovered new exit (range 16) 9107 | -5/Factory | Fabricated T-07 Excavator? 9255 | -5/Factory | Lost 3 allies 9454 | -5/Factory | Lost 5 allies 10086 | -5/Factory | Discovered new exit (range 15) 10431 | -5/Factory | Discovered new exit (range 15) 10480 | -5/Factory | Spotted B-75 Beast 10584 | -5/Factory | Build established: Bothacker-Mutant 10603 | -5/Factory | Destroyed B-75 Beast 10634 | -5/Factory | Lost 3 parts (1p2u) 10828 | -5/Factory | System corruption reached 10% 10867 | -5/Factory | Discovered new exit (range 5) 11028 | -5/Factory | Lost 3 parts (2n1w) 11091 | -5/Factory | Identified exit to Garrison 11099 | -5/Factory | Entered Garrison 11173 | -5/Garrison | Lost 6 parts (3n2u1w) 11419 | -5/Garrison | Garrison Relay disabled 11453 | -5/Garrison | Spotted B-75 Beast 11484 | -5/Garrison | Triggered checkpoint 11509 | -5/Garrison | Lost 4 allies 11513 | -5/Garrison | Triggered checkpoint 11513 | -5/Garrison | Destroyed B-75 Beast 11728 | -5/Garrison | Discovered new exit (range 13) 11731 | -5/Garrison | Lost 6 parts (1p4n1u) 11757 | -5/Garrison | Expanded RIF knowledge: Alert ID Control 11807 | -5/Garrison | Entered Factory 11941 | -5/Factory | Garrison activated, responded to threat 12135 | -5/Factory | Identified exit to Garrison 12193 | -5/Factory | Lost 3 parts (2n1u) 12483 | -5/Factory | Core integrity fell below 50% 12733 | -5/Factory | Entered Garrison 12745 | -5/Garrison | Triggered checkpoint 12822 | -5/Garrison | Garrison Relay disabled 12823 | -5/Garrison | Triggered checkpoint 12950 | -5/Garrison | Triggered checkpoint 12977 | -5/Garrison | Garrison Relay disabled 13084 | -5/Garrison | Core integrity fell below 20% 13123 | -5/Garrison | Lost 3 parts (2n1u) 13129 | -5/Garrison | Triggered checkpoint 13156 | -5/Garrison | Build established: Botlord-Mutant 13189 | -5/Garrison | Discovered new exit (range 10) 13219 | -5/Garrison | Triggered checkpoint 13253 | -5/Garrison | Garrison Relay disabled 13344 | -5/Garrison | Triggered checkpoint 13419 | -5/Garrison | Triggered checkpoint 13440 | -5/Garrison | Found embedded Infiltrators 13472 | -5/Garrison | Garrison Relay disabled 13523 | -5/Garrison | Rescued a captive Derelict 13525 | -5/Garrison | Rescued a captive Derelict 13618 | -5/Garrison | Discovered new exit (range 13) 13685 | -5/Garrison | Triggered checkpoint 13719 | -5/Garrison | Triggered checkpoint 13744 | -5/Garrison | P-70 Sage assimilated allied Fighter 6b 13818 | -5/Garrison | Lost 5 allies 13822 | -5/Garrison | Discovered new exit (range 10) 13854 | -5/Garrison | Spotted B-86 Titan 13869 | -5/Garrison | Allies destroyed B-86 Titan 13871 | -5/Garrison | Rewired B-90 Cyclops 13993 | -5/Garrison | Triggered checkpoint 14022 | -5/Garrison | Garrison Relay disabled 14159 | -5/Garrison | Entered Factory 14159 | -4/Factory | Accompanied by 6 allies 14159 | -4/Factory | Evolved 2 slots: Utility x2 14182 | -4/Factory | Discovered new exit (range 6) 14544 | -4/Factory | Lost 4 allies 14614 | -4/Factory | Discovered new exit (range 16) 14662 | -4/Factory | Lost 4 parts (1n2u1w) 14834 | -4/Factory | Found Prototype Device 15026 | -4/Factory | Sucked down chute 15026 | -4/Factory | Entered Waste 15027 | -4/Waste | Met a frightened Derelict 15045 | -4/Waste | Spotted C-40 Crusher 15091 | -4/Waste | Spotted C-40 Crusher 15111 | -4/Waste | Crushed by Compactor (0 parts destroyed, 1 dropped) 15125 | -4/Waste | Spotted C-40 Crusher 15133 | -4/Waste | Spotted C-40 Crusher 15144 | -4/Waste | Spotted C-40 Crusher 15152 | -4/Waste | Spotted C-40 Crusher 15167 | -4/Waste | Crushed by Compactor (1 part destroyed, 1 dropped) 15167 | -4/Waste | Discovered new exit (range 16) 15185 | -4/Waste | Entered Factory 15219 | -4/Factory | Identified Adv. EM Shield 15460 | -4/Factory | Fabricated Hvy. Shield Leg? 15939 | -4/Factory | Spotted B-86 Titan 16315 | -4/Factory | Identified exit to Garrison 16642 | -4/Factory | Entered Garrison 16710 | -4/Garrison | Triggered checkpoint 16787 | -4/Garrison | Lost 4 parts (1n3u) 16808 | -4/Garrison | Garrison Relay disabled 16940 | -4/Garrison | Triggered checkpoint 16999 | -4/Garrison | Discovered new exit (range 15) 17030 | -4/Garrison | Lost 5 allies 17045 | -4/Garrison | Expanded RIF knowledge: Structural Interface 17119 | -4/Garrison | Triggered checkpoint 17146 | -4/Garrison | Garrison Relay disabled 17306 | -4/Garrison | Triggered checkpoint 17394 | -4/Garrison | Discovered new exit (range 32) 17394 | -4/Garrison | Discovered new exit (range 22) 17394 | -4/Garrison | Discovered new exit (range 62) 17394 | -4/Garrison | Discovered new exit (range 71) 17409 | -4/Garrison | Triggered checkpoint 17525 | -4/Garrison | Learned Factory security intel 17530 | -4/Garrison | Garrison Relay disabled 17554 | -4/Garrison | Garrison Relay disabled 17658 | -4/Garrison | Entered Factory 17658 | -4/Factory | Accompanied by 1 ally 17733 | -4/Factory | Found Prototype Processor 17733 | -4/Factory | Identified Exp. Signal Interpreter 18164 | -4/Factory | Fabricated Enh. Hardcell Cannon (x2) 18243 | -4/Factory | Identified exit to Garrison 18244 | -4/Factory | Entered Garrison 18244 | -4/Garrison | Accompanied by 3 allies 18294 | -4/Garrison | Triggered checkpoint 18331 | -4/Garrison | Lost 4 allies 18387 | -4/Garrison | P-70 Sage assimilated allied Veteran 7f 18389 | -4/Garrison | P-70 Sage assimilated allied Virus 7f 18434 | -4/Garrison | Lost 4 allies 18455 | -4/Garrison | Found Relay Coupler [Proto] 18458 | -4/Garrison | Found Relay Coupler [Proto] 18461 | -4/Garrison | Found Relay Coupler [Proto] 18463 | -4/Garrison | Found Relay Coupler [Proto] 18566 | -4/Garrison | Garrison Relay disabled 18628 | -4/Garrison | Triggered checkpoint 18680 | -4/Garrison | Triggered checkpoint 18737 | -4/Garrison | Expanded RIF knowledge: Command Fork 18748 | -4/Garrison | Triggered checkpoint 18760 | -4/Garrison | Garrison Relay disabled 18801 | -4/Garrison | Discovered new exit (range 11) 18871 | -4/Garrison | Lost 3 parts (1p1u1w) 18896 | -4/Garrison | Triggered checkpoint 19024 | -4/Garrison | Triggered checkpoint 19029 | -4/Garrison | Triggered checkpoint 19144 | -4/Garrison | Triggered checkpoint 19229 | -4/Garrison | Garrison Relay disabled 19292 | -4/Garrison | Discovered new exit (range 2) 19528 | -4/Garrison | Entered Research 19528 | -3/Research | Accompanied by 1 ally 19528 | -3/Research | Evolved 2 slots: Propulsion x1, Utility x1 19598 | -3/Research | Identified exit to Garrison 19732 | -3/Research | Entered Garrison 19732 | -3/Garrison | Accompanied by 1 ally 19850 | -3/Garrison | Triggered checkpoint 19917 | -3/Garrison | Garrison Relay disabled 19978 | -3/Garrison | Garrison Relay disabled 20226 | -3/Garrison | Discovered new exit (range 10) 20236 | -3/Garrison | Triggered checkpoint 20264 | -3/Garrison | Garrison Relay disabled 20415 | -3/Garrison | Spotted B-86 Titan 20418 | -3/Garrison | Assimilated Titan 8a with formatsys_high 20430 | -3/Garrison | Triggered checkpoint 20433 | -3/Garrison | Triggered checkpoint 20492 | -3/Garrison | Triggered checkpoint 20492 | -3/Garrison | Garrison Relay disabled 20529 | -3/Garrison | Lost 6 allies 20647 | -3/Garrison | Lost 4 allies 20696 | -3/Garrison | Garrison Relay disabled 20805 | -3/Garrison | Lost 6 allies 20863 | -3/Garrison | Discovered new exit (range 8) 20982 | -3/Garrison | Triggered checkpoint 21152 | -3/Garrison | Expanded RIF knowledge: Zone Cloak 21161 | -3/Garrison | Discovered new exit (range 12) 21188 | -3/Garrison | Entered Research 21188 | -2/Research | Accompanied by 1 ally 21188 | -2/Research | Evolved 2 slots: Utility x1, Weapon x1 21388 | -2/Research | Lost 3 allies 21424 | -2/Research | Identified exit to Garrison 21434 | -2/Research | Found Prototype Processor 21434 | -2/Research | Identified Exp. Core Analyzer 21640 | -2/Research | Entered Garrison 21640 | -2/Garrison | Accompanied by 4 allies 21686 | -2/Garrison | Build established: Botlord-Gunner 21782 | -2/Garrison | Triggered checkpoint 21788 | -2/Garrison | Garrison Relay disabled 21812 | -2/Garrison | Triggered checkpoint 21918 | -2/Garrison | Garrison Relay disabled 21940 | -2/Garrison | Garrison Relay disabled 21940 | -2/Garrison | Garrison Relay disabled 21986 | -2/Garrison | Lost 3 allies 22190 | -2/Garrison | Triggered checkpoint 22194 | -2/Garrison | Triggered checkpoint 22201 | -2/Garrison | Triggered checkpoint 22235 | -2/Garrison | Lost 5 allies 22272 | -2/Garrison | Garrison Relay disabled 22322 | -2/Garrison | Discovered new exit (range 14) 22378 | -2/Garrison | Entered Research 22378 | -2/Research | Accompanied by 21 allies 22402 | -2/Research | Garrison activated, responded to threat 22493 | -2/Research | Lost 3 allies 22569 | -2/Research | Lost 6 allies 22905 | -2/Research | Identified exit to Garrison 22912 | -2/Research | Garrison activated, responded to threat 22916 | -2/Research | Entered Garrison 22916 | -2/Garrison | Accompanied by 9 allies 22956 | -2/Garrison | Spotted B-90 Cyclops 22961 | -2/Garrison | Triggered checkpoint 22980 | -2/Garrison | Allies destroyed B-90 Cyclops 23084 | -2/Garrison | Garrison Relay disabled 23200 | -2/Garrison | Triggered checkpoint 23209 | -2/Garrison | Triggered checkpoint 23222 | -2/Garrison | Spotted B-90 Cyclops 23248 | -2/Garrison | Lost 3 allies 23263 | -2/Garrison | Allies destroyed B-90 Cyclops 23366 | -2/Garrison | System corruption reached 10% 23377 | -2/Garrison | Lost 10 allies 23406 | -2/Garrison | Core integrity fell below 50% 23415 | -2/Garrison | Lost 8 parts (1p1n5u1w) 23602 | -2/Garrison | Lost 4 parts (2n2u) 23716 | -2/Garrison | Lost 4 parts (1p1n1u1w) 23773 | -2/Garrison | Discovered new exit (range 5) 23828 | -2/Garrison | Triggered checkpoint 23881 | -2/Garrison | Garrison Relay disabled 23945 | -2/Garrison | Core integrity fell below 20% 23982 | -2/Garrison | Lost 6 allies 24001 | -2/Garrison | Found Quantum Capacitor 24050 | -2/Garrison | Triggered checkpoint 24106 | -2/Garrison | Triggered checkpoint 24159 | -2/Garrison | Garrison Relay disabled 24162 | -2/Garrison | Triggered checkpoint 24257 | -2/Garrison | Discovered new exit (range 2) 24265 | -2/Garrison | Spotted Executioner 24265 | -2/Garrison | Spotted Executioner 24267 | -2/Garrison | Assimilated Executioner with formatsys_high 24268 | -2/Garrison | Assimilated Executioner with formatsys_high 24363 | -2/Garrison | Entered Quarantine 24363 | -2/Quarantine | Accompanied by 20 allies 24422 | -2/Quarantine | Found Alien Artifact 24422 | -2/Quarantine | Identified Phase Redirector 24513 | -2/Quarantine | Lost 3 allies 24526 | -2/Quarantine | Found Alien Artifact 24915 | -2/Quarantine | Scanned by Researcher 25024 | -2/Quarantine | Garrison activated, responded to threat 25058 | -2/Quarantine | Lost 4 allies 25093 | -2/Quarantine | Identified exit to Garrison 25104 | -2/Quarantine | Lost 3 allies 25125 | -2/Quarantine | Entered Garrison 25125 | -2/Garrison | Accompanied by 13 allies 25187 | -2/Garrison | Triggered checkpoint 25268 | -2/Garrison | Garrison Relay disabled 25271 | -2/Garrison | Triggered checkpoint 25278 | -2/Garrison | Lost 7 allies 25352 | -2/Garrison | Found Relay Coupler [Proto] 25355 | -2/Garrison | Found Relay Coupler [Proto] 25357 | -2/Garrison | Found Relay Coupler [Proto] 25360 | -2/Garrison | Found Relay Coupler [Proto] 25365 | -2/Garrison | Lost 3 allies 25413 | -2/Garrison | System corruption reached 30% 25474 | -2/Garrison | Spotted B-90 Cyclops 25624 | -2/Garrison | Lost 3 parts (1p1u1w) 25646 | -2/Garrison | Garrison Relay disabled 25669 | -2/Garrison | Triggered checkpoint 25676 | -2/Garrison | Discovered new exit (range 9) 25689 | -2/Garrison | Entered Section 7 25689 | -2/Section 7 | Accompanied by 3 allies 25720 | -2/Section 7 | Found Alien Artifact 25720 | -2/Section 7 | Identified Integrated Reactor 25720 | -2/Section 7 | Installed Integrated Reactor, increased core energy generation (+10) 25838 | -2/Section 7 | Discovered new exit (range 9) 25860 | -2/Section 7 | Entered Access 25860 | -1/Access | Accompanied by 5 allies 25860 | -1/Access | Evolved 2 slots: Utility x2 26047 | -1/Access | Identified exit to Surface 26174 | -1/Access | Imp. Hacking Suite fried by hacking feedback 26268 | -1/Access | System corruption reached 10% 26287 | -1/Access | Lost 4 allies 26374 | -1/Access | Spotted B-99 Colossus 26380 | -1/Access | Spotted B-99 Colossus 26390 | -1/Access | Released all parts (11) 26394 | -1/Access | Core integrity fell below 50% 26401 | -1/Access | Core integrity fell below 20% 26401 | -1/Access | Destroyed by G-73 Enforcer with Phase Gun Last Messages --------------- 26390_ Released Adv. Matter Compressor. 26390_ Released Enh. Biometal Leg. 26393_ Penetrated by Slug. 26393_ Slug penetrates Reinforced Barrier. 26393_ Penetrated by Slug. 26393_ Slug penetrates Reinforced Barrier. 26393_ Penetrated by Slug. 26393_ Slug penetrates B-99 Colossus. 26393_ Slug penetrates Reinforced Barrier. 26393_ Slug penetrates B-99 Colossus. 26393_ Slug penetrates Reinforced Barrier. 26396_ Slug penetrates Sealed Heavy Doors. 26396_ Penetrated by Slug. 26396_ Slug penetrates Sealed Heavy Doors. 26400_ B-99 Colossus activates siege mode. 26400_ Penetrated by Slug. 26400_ Slug penetrates Sealed Heavy Doors. 26400_ G-73 Enforcer destroyed. 26400_ Knocked back. 26400_ Penetrated by Slug. Map ----- +----------------------------------------------------+ | #[=# ?????????????????????????????+ # ""????? | | #%!# ???????????????????????????????# #? ?????? | | #*[##??????#????????????????????????# #? ?????? | | **!!################################# ###+####### | | !=%%! %! = | | !!|! ! | | ! !%################ ""#####+##########""## | | #= ###########?????# ""#??# ????? ###? | | " # #?????# ""#??# ? ???? | | # # #?????# T#??# #### | | # + #?????# ""#??# ? # | | # # #?????# ""#??# " ?# ! | | # # #?????# ""#??# """ ?# [ | | # # #?????""""""""""""??# """ #] | | # # #???????????????????# " #]! | | # # #???????????????????# ? #] | | # %""#########???????????????????# ??# | | # # #??????????????????????????# ??# | | # #""########??????????